Cogmind - Beta 12 @@@ ROGUE MODE // 2023.09.13 @ 22:38:20 Player: lyrabold Result: Establishing Free Derelict Territories! Performance ------------- Evolutions (9) 4500 Regions Visited (41) 8200 Robots Destroyed (549) 2745 Value Destroyed (20121) 20121 Prototype IDs (155) 3100 Alien Tech Used (12) 2400 Bonus (33499) 33499 TOTAL SCORE: 74565 Bonus ------- Triggered High Security 500 High Alert Combat Kills 4156 Follower Combat Kills 2845 Entered Garrisons 200 Network Hubs Disabled 600 Aligned with FarCom 300 Met Data Miner 300 Met Imprinter 300 Met Warlord at Base 500 MAIN.C Attacked Warlord 500 Built Enhanced Grunts 300 A7 Reached Mainframe 300 Met Warlord at Research 2000 Destroyed MAIN.C Guards 500 Met MAIN.C 5000 Destroyed MAIN.C Shell 5000 Destroyed MAIN.C 10000 Met Warlord at Command 2000 Win 3000 Friendly Fire -4802 Cogmind --------- Core Integrity 979/1850 Matter 405/425 Energy 90/100 System Corruption 13% Temperature Cool (0) Movement Hovering (56) Location Free Derelict Territories Parts ------- > --- POWER (3) -------- (None) > --- PROPULSION (8) --- Combat Antigrav System Combat Antigrav System (fused) Combat Linear Gravjet Combat Linear Gravjet Combat Linear Gravjet > --- UTILITY (12) ----- High-capacity Storage Unit Advanced Melee Analysis Suite Advanced Melee Analysis Suite Advanced Melee Analysis Suite Advanced Melee Analysis Suite Femtoactuators Experimental Actuator Array Advanced Force Booster Graphene Brace > --- WEAPON (3) ------- Longsword +1 Longsword +1 Vortex Lance > --- INVENTORY (20) --- Combat Linear Gravjet Combat Linear Gravjet Combat Linear Gravjet Combat Linear Gravjet Experimental EM Disruption Field Point Defense Array Point Defense Array Transdimensional Reconstructor Null Cannon Peak State ------------ > --- POWER ------------ Light Antimatter Reactor Micro Antimatter Reactor Light Quantum Reactor > --- PROPULSION ------- Improved Gyrokinetic Inverter Combat Antigrav System Combat Antigrav System Combat Antigrav System Cooled Linear Gravjet Combat Linear Gravjet Combat Linear Gravjet Combat Linear Gravjet > --- UTILITY ---------- High-capacity Storage Unit Experimental Signal Interpreter Advanced Melee Analysis Suite Advanced Melee Analysis Suite Advanced Melee Analysis Suite Femtoactuators Heavy Regenerative Plating Experimental Force Field Advanced Hacking Suite Advanced Hacking Suite Advanced Hacking Suite > --- WEAPON ----------- Null Cannon Sigix Broadsword > --- INVENTORY -------- Combat Linear Gravjet Combat Linear Gravjet Combat Linear Gravjet Large Storage Unit Advanced Energy Well Advanced Sensor Array Advanced Melee Analysis Suite Advanced Melee Analysis Suite Experimental Actuator Array Advanced Force Booster Advanced Force Booster Advanced Phase Shifter Improved Utility Shielding Experimental EM Disruption Field Long-range Tractor Beam Transdimensional Reconstructor Longsword +1 Longsword +1 Vortex Lance Vortex Lance [Rating: 226] Favorites ----------- Power Micro Antimatter Reactor Engine Improved Ion Engine Power Core Light Nuclear Core Reactor Micro Antimatter Reactor Propulsion Cooled VTOL Module Treads Light Treads Hover Unit Combat Linear Gravjet Flight Unit Cooled VTOL Module Utility Advanced Hacking Suite Device Structural Scanner Storage Medium Storage Unit Processor Experimental Signal Interpreter Hackware Advanced Hacking Suite Protection Hardened Light Armor Plating Weapon Makeshift Spear Energy Gun Medium Laser Energy Cannon Compact HERF Cannon Ballistic Gun Gauss Rifle Ballistic Cannon Compact Mass Driver Launcher Rocket Array Impact Weapon Heavy Mace Slashing Weapon Sigix Broadsword Piercing Weapon Makeshift Spear Special Melee Weapon Improved Datajack Build | -11 -10 -10 -9 -9 -9 -8 -8 -8 -8 -8 -7 -7 -7 -7 -6 -6 -6 -6 -6 -6 -6 -5 -5 -5 -5 -5 -5 -5 -5 -4 -4 -4 -4 -3 -3 -3 -2 -2 -2 -1 -1 ------- Run | Jun Mat Min Mat Min Exi Min Mat Gar Mat Sto Fac Low Low Zio Pro Fac Was Fac Low Low Dat Pro Fac Was Fac Ext Cet Arc Hub Fac Upp Upp War Pro Res Qua Res Tes Sec Acc Com Slots Evolved 18 | . . . 2 . . . 2 . . . 2 . . . . 2 . . . . . . 2 . . . . . . 2 . . . . 2 . 2 . . 2 . Power 2 | . . . . . . . . . . . . . . . . . . . . . . . . . . . . . . . . . . . 1 . . . . 1 . Propulsion 6 | . . . 1 . . . . . . . 1 . . . . 1 . . . . . . . . . . . . . . . . . . 1 . 1 . . 1 . Utility 10 | . . . 1 . . . 2 . . . 1 . . . . 1 . . . . . . 2 . . . . . . 2 . . . . . . 1 . . . . Weapon . | . . . . . . . . . . . . . . . . . . . . . . . . . . . . . . . . . . . . . . . . . . Parts Attached 991 | 7 20 11 27 4 22 . 36 24 13 51 109 5 10 15 12 25 7 52 14 6 6 3 67 1 17 13 8 6 21 39 7 . 20 20 37 26 12 37 41 101 39 Power 62 | 1 1 . 1 1 2 . 3 1 . 2 2 . . . . . . 6 . . . . 6 . 1 . 1 . . . . . 2 . 3 4 2 5 8 6 4 Engine 9 | 1 1 . 1 1 2 . 1 . . . . . . . . . . . . . . . 2 . . . . . . . . . . . . . . . . . . Core 21 | . . . . . . . 1 1 . 1 2 . . . . . . 6 . . . . 4 . . . . . . . . . . . . 2 . 2 2 . . Reactor 32 | . . . . . . . 1 . . 1 . . . . . . . . . . . . . . 1 . 1 . . . . . 2 . 3 2 2 3 6 6 4 Propulsion 107 | 2 1 2 3 1 4 . 5 2 3 13 11 . . . . 2 . 6 . . . 1 4 . . . . . . 11 . . 2 6 6 3 3 4 3 6 3 Treads 35 | 2 1 2 3 1 4 . 4 2 3 13 . . . . . . . . . . . . . . . . . . . . . . . . . . . . . . . Leg . | . . . . . . . . . . . . . . . . . . . . . . . . . . . . . . . . . . . . . . . . . . Wheel . | . . . . . . . . . . . . . . . . . . . . . . . . . . . . . . . . . . . . . . . . . . Hover 34 | . . . . . . . . . . . . . . . . . . . . . . . . . . . . . . 1 . . . 5 6 3 3 4 3 6 3 Flight 38 | . . . . . . . 1 . . . 11 . . . . 2 . 6 . . . 1 4 . . . . . . 10 . . 2 1 . . . . . . . Utility 472 | 2 12 3 7 . 4 . 12 2 3 15 47 2 5 9 7 13 2 33 8 3 4 2 22 1 11 2 1 5 15 19 3 . 11 8 18 15 7 16 25 75 23 Device 312 | 1 9 1 2 . . . 5 . . 6 33 1 4 5 5 8 2 21 4 2 2 1 12 . 10 1 . 3 11 9 1 . 6 4 13 8 5 12 21 68 16 Storage 20 | 1 3 1 . . 1 . . . 1 . 2 . 1 . . . . . . . . . . . . . . . . 2 . . . 1 1 1 . 3 . 2 . Processor 19 | . . . . . . . 1 1 . . 2 . . . . 1 . . . . . . 1 . 1 . . . . 1 . . . . . 2 1 . 2 3 3 Hackware 28 | . . . . . 1 . 1 . 1 1 3 . . 2 . 1 . 4 1 . 1 . 4 . . . . 1 . 2 . . 1 . 1 2 1 . . . . Protection 93 | . . 1 5 . 2 . 5 1 1 8 7 1 . 2 2 3 . 8 3 1 1 1 5 1 . 1 1 1 4 5 2 . 4 3 3 2 . 1 2 2 4 Artifact . | . . . . . . . . . . . . . . . . . . . . . . . . . . . . . . . . . . . . . . . . . . Weapon 350 | 2 6 6 16 2 12 . 16 19 7 21 49 3 5 6 5 10 5 7 6 3 2 . 35 . 5 11 6 1 6 9 4 . 5 6 10 4 . 12 5 14 9 Energy Gun 33 | 1 4 5 9 1 . . 4 6 . . . 1 . . . . . . . . . . . . . . 1 . . . . . . . . . . 1 . . . Energy Cannon 26 | . . . . . . . . 2 . 2 . . . . . . 1 1 . . . . . . . . . . . . . . . . . . . 10 3 5 2 Ballistic Gun 50 | 1 1 . 5 . 5 . 7 4 4 12 11 . . . . . . . . . . . . . . . . . . . . . . . . . . . . . . Ballistic Cannon 63 | . . . . . . . 2 . . . 13 . 2 . . 5 1 1 3 2 . . 15 . 2 3 1 . 2 1 1 . 1 2 5 1 . . . . . Launcher 34 | . . 1 2 1 2 . . . 2 1 . 1 . 2 1 1 1 3 2 . . . 2 . . 2 . . . 3 1 . 1 1 2 1 . . . 1 . Special Weapon . | . . . . . . . . . . . . . . . . . . . . . . . . . . . . . . . . . . . . . . . . . . Impact Weapon 14 | . 1 . . . . . . 6 1 6 . . . . . . . . . . . . . . . . . . . . . . . . . . . . . . . Slashing Weapon 47 | . . . . . 4 . 2 . . . 7 . . 1 1 2 . 1 . . 2 . 1 . . 2 1 . 1 2 1 . . 1 2 1 . 1 2 8 4 Piercing Weapon 23 | . . . . . . . 1 . . . 5 . 1 2 . . . 1 1 1 . . . . . . . . . . 1 . 3 2 1 1 . . . . 3 Special Melee Weapon 60 | . . . . . 1 . . 1 . . 13 1 2 1 3 2 2 . . . . . 17 . 3 4 3 1 3 3 . . . . . . . . . . . Unidentified Prototypes 43 | . . . 2 . . . 1 . 1 . . . 1 . . . . 3 1 . . . . . . . 1 . 2 6 1 . 4 5 . 4 . 4 6 1 . Corrupted Parts 2 | . . . . . . . . . . . . . . . . . . . . . . . . . . . . . . . . . . . . 1 . . 1 . . System Corruption 9 | . . . . . . . . . . . . . . . . . . . . . . . . . . . . . . . . . . . . 5 . . 4 . . Parts Lost 66 | . 1 1 2 . 8 1 3 2 3 3 2 . . . . . . 1 . . . . 4 . . . . . . . 2 . 1 . 2 7 . 3 3 . 17 Power 12 | . . . . . 1 . 1 1 . . . . . . . . . . . . . . 1 . . . . . . . . . . . . 2 . . 2 . 4 Propulsion 14 | . . . . . 4 . . . 2 2 . . . . . . . . . . . . 1 . . . . . . . . . . . . . . 2 . . 3 Utility 32 | . . 1 . . 3 1 2 . 1 . 2 . . . . . . . . . . . 2 . . . . . . . 2 . 1 . 2 5 . 1 1 . 8 Weapon 8 | . 1 . 2 . . . . 1 . 1 . . . . . . . 1 . . . . . . . . . . . . . . . . . . . . . . 2 Highest Loss Streak 14 | . 1 1 1 . 5 1 1 1 1 1 1 . . . . . . 1 . . . . 4 . . . . . . . 1 . 1 . 1 3 . 1 1 . 14 To Critical Strikes 4 | . . . . . 3 . . . . . . . . . . . . . . . . . . . . . . . . . . . . . . 1 . . . . . Average Slot Usage (%) 96 | . 99 100 99 100 90 100 93 94 99 99 95 100 99 100 100 99 100 95 94 93 93 93 97 94 99 100 100 99 100 95 97 90 98 99 97 94 94 92 91 91 91 Engine 3 | . 14 14 11 11 10 11 2 . . . . . . . . . . . . . . . . 5 3 . . . . . . . . . . . . . . . . Core 2 | . . . . . . . 6 7 9 7 6 7 7 7 7 6 6 5 6 6 6 6 4 . . . . . . . . . . . . . . . 1 . . Reactor 2 | . . . . . . . . . . 1 . . . . . . . . . . . . . . 1 5 5 5 5 5 5 5 5 5 8 8 7 7 6 10 10 Treads 12 | . 27 28 33 33 31 33 26 27 27 27 . . . . . . . . . . . . . . . . . . . . . . . . . . . . . . . Hover 6 | . . . . . . . . . . . . . . . . . . . . . . . . . . . . . . . . . . 18 25 26 28 27 29 29 29 Flight 10 | . . . . . . . . . . . 29 30 30 30 30 33 33 33 33 33 33 33 28 29 29 29 29 29 29 22 25 25 25 6 . . . . . . . Device 8 | . 14 12 8 . . . 7 . . . 7 15 14 14 13 11 13 11 12 13 12 12 10 11 11 10 5 10 10 11 12 10 17 15 15 15 7 9 11 7 13 Storage 7 | . 14 14 11 11 10 11 9 9 9 9 7 7 6 7 7 6 6 6 6 6 6 6 5 5 5 5 5 5 5 5 5 5 5 5 4 5 8 6 7 3 3 Processor 5 | . . . . . . . 7 9 2 . 6 7 7 7 7 6 6 6 6 6 6 6 5 5 7 11 11 5 5 5 5 5 5 5 4 1 6 8 9 14 11 Hackware 13 | . . . . . . 11 3 9 15 18 21 15 15 15 15 19 20 19 20 20 20 20 26 23 23 23 23 28 29 31 30 25 24 20 18 14 20 20 15 11 4 Protection 7 | . . 1 13 22 18 11 16 17 17 17 . . . . 1 . . . . . . . 1 5 2 . 5 . . 2 2 5 2 8 5 8 5 4 4 3 6 Energy Gun 4 | . 26 27 18 10 . . 5 2 . . . . . . . . . 2 . . . . . . . . . . . . . . . . . . . . . . . Ballistic Gun 3 | . 1 . 3 11 7 22 4 8 17 15 . . . . . . . . . . . . . . . . . . . . . . . . . . . . . . . Slashing Weapon 1 | . . . . . 6 . . . . . . . . . . . . . . . . . . . . . . . . . 2 5 5 5 . 1 4 4 3 6 6 Piercing Weapon 2 | . . . . . . . . . . . 5 7 6 6 7 6 6 6 5 6 6 6 5 5 5 5 5 5 5 5 4 5 9 9 5 2 . . . . . Special Melee Weapon 1 | . . . . . 3 . . . . . 2 7 6 6 6 3 2 . . . . . 3 . 4 4 4 5 4 4 . . . . . . . . . . . Naked Turns . | . . . . . . . . . . . . . . . . . . . . . . . . . . . . . . . . . . . . . . . . . . Heaviest Build 132 | 15 51 93 103 103 103 98 109 115 115 110 104 28 28 28 28 28 32 35 33 24 27 27 31 23 26 28 27 25 27 28 40 30 46 45 80 78 72 72 85 132 129 Greatest Support 133 | 40 40 40 60 60 60 60 60 60 60 60 60 28 28 20 28 28 26 35 33 25 35 35 37 26 26 28 26 26 28 40 42 33 36 68 96 98 112 103 108 133 128 Greatest Overweight (x) 31 | . 1 2 1 1 31 1 2 1 2 1 1 1 . 1 . . 1 1 1 . 1 . . . . 1 1 . . 1 . . 1 . 1 1 . . . 1 1 Average Overweight (x) . | . . 1 1 1 1 1 1 1 1 1 . . . . . . . . . . . . . . . . . . . . . . . . . . . . . . . Largest Inventory Capacity 25 | 8 20 25 25 25 25 25 25 25 25 25 25 10 10 10 10 10 10 10 10 10 10 10 10 10 10 10 10 10 10 10 10 10 10 10 15 15 15 15 15 20 20 Average Capacity 17 | 7 17 24 25 25 24 25 25 25 25 25 10 10 9 10 10 10 10 10 10 10 10 10 10 10 10 10 10 10 10 10 10 10 10 10 11 15 15 15 15 16 20 Most Carried 25 | 4 20 25 25 25 25 25 25 25 25 25 25 10 10 10 10 10 10 10 10 10 10 10 10 10 10 10 10 10 10 10 10 10 10 10 12 15 15 15 15 20 20 Average Carried 16 | 2 12 24 24 24 21 25 24 24 24 24 9 10 9 9 9 8 9 9 9 9 9 9 9 9 9 10 9 10 9 9 9 10 9 9 10 14 14 14 14 16 18 Final Capacity 25 | 8 20 25 25 25 25 25 25 25 25 25 10 10 10 10 10 10 10 10 10 10 10 10 10 10 10 10 10 10 10 10 10 10 10 10 15 15 15 15 15 20 20 Final Carried 25 | 4 20 25 25 25 25 25 25 25 25 25 10 10 10 10 10 10 10 9 10 10 10 10 10 10 10 10 10 10 10 10 10 10 10 10 12 15 15 14 14 20 9 Class Distribution -------------------- 24% | Mutant 16% | Scavenger-Mutant 12% | Wizard-Scout 11% | Hacker-Mutant 10% | Hacker-Scout 6% | Hacker-Sprinter 4% | Wizard-Sprinter 3% | Wizard-Gladiator 3% | Hacker-Gladiator Dominant Class ---------------- Mutant | -10/Materials Mutant | -10/Mines Scavenger-Mutant | -9/Materials Mutant | -9/Mines Mutant | -9/Exiles Mutant | -8/Mines Scavenger-Mutant | -8/Materials Scavenger-Mutant | -8/Garrison Hacker-Mutant | -8/Materials Hacker-Mutant | -8/Storage Hacker-Sprinter | -7/Factory Hacker-Scout | -7/Lower Caves Hacker-Scout | -7/Lower Caves Hacker-Scout | -7/Zion Hacker-Scout | -6/Proximity Caves Hacker-Scout | -6/Factory Hacker-Scout | -6/Waste Hacker-Scout | -6/Factory Hacker-Scout | -6/Lower Caves Hacker-Scout | -6/Lower Caves Hacker-Scout | -6/Data Miner Hacker-Scout | -5/Proximity Caves Wizard-Scout | -5/Factory Wizard-Scout | -5/Waste Wizard-Scout | -5/Factory Wizard-Scout | -5/Extension Wizard-Sprinter | -5/Cetus Wizard-Scout | -5/Archives Wizard-Scout | -5/Hub_04(d) Wizard-Scout | -4/Factory Wizard-Scout | -4/Upper Caves Wizard-Sprinter | -4/Upper Caves Wizard-Sprinter | -4/Warlord Hacker-Mutant | -3/Proximity Caves Hacker-Mutant | -3/Research Hacker-Mutant | -3/Quarantine Wizard-Gladiator | -2/Research Wizard-Gladiator | -2/Testing Hacker-Gladiator | -2/Section 7 Hacker-Mutant | -1/Access Scavenger-Mutant | -1/Command Resources | -11 -10 -10 -9 -9 -9 -8 -8 -8 -8 -8 -7 -7 -7 -7 -6 -6 -6 -6 -6 -6 -6 -5 -5 -5 -5 -5 -5 -5 -5 -4 -4 -4 -4 -3 -3 -3 -2 -2 -2 -1 -1 ----------- Run | Jun Mat Min Mat Min Exi Min Mat Gar Mat Sto Fac Low Low Zio Pro Fac Was Fac Low Low Dat Pro Fac Was Fac Ext Cet Arc Hub Fac Upp Upp War Pro Res Qua Res Tes Sec Acc Com Matter Collected 20248 | 285 237 185 355 148 578 25 789 477 447 1376 1550 40 191 60 74 507 396 560 386 70 . 25 892 . 257 263 94 60 268 285 169 177 278 205 2990 813 1274 276 1225 1661 300 Remotely 156 | . . . . . . . . . . . . . . . . . . . . . . . . . . . . . . . . . . . . . . . . 156 . Salvage Created 27635 | 126 782 281 1279 361 247 . 2181 659 714 2115 1624 27 42 . 96 572 1213 1289 325 . 24 . 870 . 282 364 86 219 149 203 26 158 . 104 1370 368 1052 487 920 3753 3267 Parts 1369 | 8 43 12 89 26 43 . 105 38 24 118 97 2 6 . 7 32 4 64 7 . 3 . 58 . 6 20 3 20 11 11 1 6 . . 54 18 40 36 61 203 93 Haulers Intercepted 37 | . 2 . 1 . . . 3 . 2 6 4 . . . . 1 . 5 1 . . . . . 1 . . . . . . . . . 1 1 5 . . 4 . Recyclers Shooed 11 | . 1 1 1 . . . 2 . 1 . 1 . . . . 1 . . . . . . . . . 1 . . . . . . . . . . . . . 2 . Parts Field Recycled . | . . . . . . . . . . . . . . . . . . . . . . . . . . . . . . . . . . . . . . . . . . Retrieved Matter . | . . . . . . . . . . . . . . . . . . . . . . . . . . . . . . . . . . . . . . . . . . Parts Self-Destructed 16 | . . . . . . . . . . . . 2 3 . 3 . . . 7 . . . . . . . . . . . 1 . . . . . . . . . . Prevented . | . . . . . . . . . . . . . . . . . . . . . . . . . . . . . . . . . . . . . . . . . . Kills | -11 -10 -10 -9 -9 -9 -8 -8 -8 -8 -8 -7 -7 -7 -7 -6 -6 -6 -6 -6 -6 -6 -5 -5 -5 -5 -5 -5 -5 -5 -4 -4 -4 -4 -3 -3 -3 -2 -2 -2 -1 -1 ------- Run | Jun Mat Min Mat Min Exi Min Mat Gar Mat Sto Fac Low Low Zio Pro Fac Was Fac Low Low Dat Pro Fac Was Fac Ext Cet Arc Hub Fac Upp Upp War Pro Res Qua Res Tes Sec Acc Com Combat Hostiles Destroyed 306 | . 15 5 29 11 4 . 33 16 8 27 6 . 2 . 4 2 6 8 5 . . . 8 . . 5 . . 1 . 2 . . . 24 4 2 6 11 38 24 Melee 98 | . . . . . 3 . 1 . . . . . 2 . 1 . . 6 . . . . 2 . . 1 . . . . 2 . . . 4 . 2 5 10 36 23 Guns 122 | . 15 4 20 9 1 . 26 15 7 23 2 . . . . . . . . . . . . . . . . . . . . . . . . . . . . . . Cannons 20 | . . . . . . . 2 . . . 4 . . . . . . . . . . . 1 . . 1 . . 1 . . . . . 8 2 . 1 . . . AOE 57 | . . 1 8 2 . . . . 1 3 . . . . 3 2 6 2 5 . . . 5 . . 3 . . . . . . . . 12 2 . . . 2 . Classes Destroyed 27 | 2 5 1 1 . 3 . 3 3 . 2 1 . 1 . . . 2 1 . . . . . . . . . . . . . 1 . . . . . 1 . . . Worker 38 | . . . 3 1 . . 3 . 1 5 4 . . . . 1 . 3 . . . . 2 . . . . . 1 . . . . . 4 . 1 2 . 5 2 Builder 36 | . 1 1 . . . . 2 . . 2 6 . . . . 5 . 2 . . . . 4 . . 2 . . 1 1 . . . . 3 1 2 . . 3 . Tunneler 4 | 2 . . . 1 . . . . . . 1 . . . . . . . . . . . . . . . . . . . . . . . . . . . . . . Hauler 37 | . 2 . 1 . . . 3 . 2 6 4 . . . . 1 . 5 1 . . . . . 1 . . . . . . . . . 1 1 5 . . 4 . Recycler 42 | 1 1 . 2 . . . 1 . 2 3 9 . . . . 3 . 2 . . . . 3 . 1 1 . . . 1 . . . . 6 1 1 . . 4 . Mechanic 3 | . . . . . . . . . . 1 . . . . . . . . . . . . . . . . . . . 1 . . . . . . . . . 1 . Operator 23 | . . . . . . . 2 . 1 1 1 . . . . . . 1 . . . . 2 . . . . 6 . . . . . . 1 2 1 2 1 1 1 Drone 1 | . . . . . . . . . . . . . . . . . . . . . . . . . . . . . . . . . . . . . . 1 . . . Turret 1 | . . . . . 1 . . . . . . . . . . . . . . . . . . . . . . . . . . . . . . . . . . . . Watcher 49 | . 2 . 2 . . . 5 1 . 2 6 . . . . 1 . 2 . . . . 3 . 1 . . . 3 2 . . . . 2 2 2 1 1 8 3 Swarmer 51 | . 3 2 9 4 . . . 5 2 . . . . . 3 2 . . . . . . 4 . . . . . . . 1 . . . 9 . . . . 4 3 Cutter 7 | . . . . . . . . 2 . . . . . . . . . 1 . . . . . . . . . . . . . . . . . . . . . 4 . Grunt 112 | . 12 2 13 7 . . 23 4 5 16 1 . . . . . . 2 5 . . . 3 . . . . . . . . . . . 8 . 2 . . 5 4 Brawler 1 | . . . . . . . . 1 . . . . . . . . . . . . . . . . . . . . . . . . . . . . . . . . . Duelist 3 | . . . . . . . . 1 . 1 . . . . . . . . . . . . . . . . . . . . . . . . . . . . . . 1 Protector 1 | . . . . . . . . . . 1 . . . . . . . . . . . . . . . . . . . . . . . . . . . . . . . Sentry 43 | . . 1 7 . . . 6 2 1 7 2 . . . . . . 1 . . . . 1 . . 3 . . . . . . . . 1 . . . 3 5 3 Specialist 3 | . . . . . . . 2 . . . . . . . . . . . . . . . . . . . . . 1 . . . . . . . . . . . . Hunter 24 | . . . . . . . 2 1 . 2 . . . . 1 . . 2 . . . . . . . . . . . . . . . . 3 2 . . . 6 5 Programmer 41 | . . . . . . . . . . . 3 . . . . . . 1 . . . . . . . 1 . . . . 1 . . . 3 2 . 5 7 14 4 Heavy 1 | . . . . . . . . . . . . . . . . . . 1 . . . . . . . . . . . . . . . . . . . . . . . Compactor 6 | . . . . . . . . . . . . . . . . . 6 . . . . . . . . . . . . . . . . . . . . . . . . S7 Guard 1 | . . . . . . . . . . . . . . . . . . . . . . . . . . . . . . . . . . . . . . . 1 . . M Guard 1 | . . . . . . . . . . . . . . . . . . . . . . . . . . . . . . . . . . . . . . . . . 1 Combat Programmer 1 | . . . . . . . . . . . . . . . . . . . . . . . . . . . . . . . . . . . . . . . . . 1 Zionite 2 | . . . . . 2 . . . . . . . . . . . . . . . . . . . . . . . . . . . . . . . . . . . . Decomposer 3 | . . . . . . . . . . . . 1 2 . . . . . . . . . . . . . . . . . . . . . . . . . . . . Packrat 1 | . . . . . . . . . . . . . . . . . . . 1 . . . . . . . . . . . . . . . . . . . . . . Samaritan 4 | . . . . . . . . . . . . . . . . . . . . . . . . . . . . . . . . 4 . . . . . . . . . Master Thief 2 | . . . . . . . . . . . . . 2 . . . . . . . . . . . . . . . . . . . . . . . . . . . . Assembled 3 | . . . . . 3 . . . . . . . . . . . . . . . . . . . . . . . . . . . . . . . . . . . . Thug 1 | . . . . . . . . . . 1 . . . . . . . . . . . . . . . . . . . . . . . . . . . . . . . Savage 1 | . . . . . . . . . 1 . . . . . . . . . . . . . . . . . . . . . . . . . . . . . . . . Butcher 3 | . . . . . . . . . . . . . . . . . . 1 . . . . . . . 2 . . . . . . . . . . . . . . . Martyr 3 | . . . . . . . . . . . . . . . . . 2 . . . . . . . . . . . . . . . . . . . . . . . 1 Guerrilla 1 | . . . . . . . . . . . . . . . . . . . . . . . . . . 1 . . . . . . . . . . . . . . . Best Kill Streak 9 | 3 3 2 7 4 5 . 9 4 4 7 3 . 2 . 3 4 6 3 6 . 1 . 4 . 2 6 . 4 2 1 1 . . . 8 2 3 2 5 7 4 Combat Bots Only 7 | . 3 2 7 4 3 . 6 4 3 4 1 . 2 . 3 2 6 2 5 . . . 4 . . 4 . . 1 . 1 . . . 5 2 2 2 4 6 4 Max Kills in Single Turn 6 | 1 1 1 3 2 1 . 2 1 2 2 1 1 1 . 3 3 2 1 4 . 1 . 2 . 1 3 1 1 1 1 1 1 . . 6 2 1 1 1 3 1 Gunslinging 1 | . . . . 1 . . . . . . . . . . . . . . . . . . . . . . . . . . . . . . . . . . . . . Exploded 5 | . . 1 2 1 . . . . 1 2 . . . . 3 2 2 1 4 . . . 2 . . 2 . . . . . . . . 5 2 . . . 2 . Melee 1 | . . . . . 1 . 1 . . . . . 1 . 1 . . 1 . . . . 1 . . 1 . . . . 1 . . . 1 . 1 1 1 1 1 Uniques/NPCs Destroyed 9 | . . 1 . . 4 . . . . . . . . . . . . . . . 1 . . . . . 1 . . . . . . . . . . . . . 2 YI-UF0 (-10/Mines) 8R-AWN (-9/Exiles) EX-HEX (-9/Exiles) EX-DEC (-9/Exiles) EX-BIN (-9/Exiles) Data Miner (-6/Data Miner) A7 (-5/Cetus) MAIN.C Shell (-1/Command) MAIN.C (-1/Command) Combat | -11 -10 -10 -9 -9 -9 -8 -8 -8 -8 -8 -7 -7 -7 -7 -6 -6 -6 -6 -6 -6 -6 -5 -5 -5 -5 -5 -5 -5 -5 -4 -4 -4 -4 -3 -3 -3 -2 -2 -2 -1 -1 -------- Run | Jun Mat Min Mat Min Exi Min Mat Gar Mat Sto Fac Low Low Zio Pro Fac Was Fac Low Low Dat Pro Fac Was Fac Ext Cet Arc Hub Fac Upp Upp War Pro Res Qua Res Tes Sec Acc Com Damage Taken 22561 | . 562 109 718 147 1306 251 1176 477 552 1162 288 . 36 . 107 46 . 334 17 . 43 134 372 . . 187 13 48 125 27 457 . 126 . 1523 1455 750 1978 1908 1430 4697 Core 2826 | . 86 . 90 . 271 18 151 69 49 150 57 . 16 . 18 . . 171 17 . . 35 123 . . 47 . 48 26 . 95 . 44 . 96 46 52 147 33 116 755 Absorbed by Shields 3203 | . . . . . . . . . . . . . . . . . . . . . . . . . . . 13 . . . . . . . . 52 . . 339 1313 1486 Redirected to Shielding 360 | . . . . . . . . . . . . . . . . . . . . . . . . . . . . . . . . . . . . . . . . . 360 Regen/Repaired (Parts) 8356 | . 82 . 134 . . . 202 . . 22 67 . . 158 . . 9 41 . . . . 134 . 58 . . . . 228 . . 15 . 538 815 568 1177 2029 1487 592 Core Remaining (%) 64 | 100 . 65 . . . 5 . . . 23 . . . . 87 . . . . . . 73 . . . . . . 75 . . . . 87 . 76 . . 63 . 52 Volleys Fired 757 | 5 62 22 65 16 37 9 47 36 28 105 73 . 6 . 1 13 17 5 30 2 . . 25 . 2 6 2 . 7 1 22 . 1 2 42 15 1 8 11 16 17 Largest 2 | 2 2 2 2 2 2 2 2 2 2 2 2 . 1 . 1 1 1 1 1 1 . . 1 . 1 1 1 . 1 1 1 . 1 1 2 2 1 1 1 1 1 Hottest 132 | 70 115 115 96 79 46 46 72 56 56 119 83 . 50 . 45 48 45 113 60 60 . . 60 . 60 60 60 . 60 60 60 . 60 66 132 132 66 130 130 130 130 Shots Fired 1290 | 10 124 42 126 26 54 18 167 94 52 207 75 . 6 . 1 13 17 5 30 2 . . 25 . 2 6 2 . 7 1 22 . 1 2 72 28 1 8 11 16 17 Gun 908 | 10 124 40 123 20 39 18 157 92 50 200 33 . . . . . . 2 . . . . . . . . . . . . . . . . . . . . . . . Cannon 301 | . . . . . . . 10 2 . 4 42 . 5 . . 12 1 1 28 2 . . 22 . 2 2 2 . 7 1 20 . 1 2 62 25 1 8 11 11 17 Launcher 81 | . . 2 3 6 15 . . . 2 3 . . 1 . 1 1 16 2 2 . . . 3 . . 4 . . . . 2 . . . 10 3 . . . 5 . Special . | . . . . . . . . . . . . . . . . . . . . . . . . . . . . . . . . . . . . . . . . . . Kinetic 784 | 5 17 . 20 10 39 18 94 61 50 200 75 . 5 . . 12 1 . 28 2 . . 22 . 2 2 2 . 7 1 20 . 1 2 62 25 1 . . . . Thermal 193 | 5 98 24 28 10 . . . . . . . . . . . . . 3 . . . . . . . . . . . . . . . . . . . 6 4 11 4 Explosive 81 | . . 2 3 6 15 . . . 2 3 . . 1 . 1 1 16 2 2 . . . 3 . . 4 . . . . 2 . . . 10 3 . . . 5 . Electromagnetic 232 | . 9 16 75 . . . 73 33 . 4 . . . . . . . . . . . . . . . . . . . . . . . . . . . 2 7 . 13 Robot Hit Streak 18 | 4 17 9 14 11 6 4 17 18 13 11 8 . 4 . 10 11 8 1 . . . . 4 . . 2 2 . 5 . 6 . . . 9 6 . 4 5 . 9 Robot Miss Streak 7 | 1 2 3 5 1 3 6 5 4 2 5 3 . . . . 1 3 4 . . . . 1 . . 2 1 . 2 . 2 . . . 3 2 . . 1 5 7 Penetration Max 1 | . . . . . . . 1 . . . . . . . . . . . . . . . . . . . . . . . . . . . 1 . . . . . . Secondary Targets 10 | . 2 . 2 3 . . . . 1 2 . . . . . . . . . . . . . . . . . . . . . . . . . . . . . . . Max Gunslinging Chain 1 | . 1 . 1 1 . . . . 1 1 . . . . . . . . . . . . . . . . . . . . . . . . . . . . . . . Autonomous 104 | . . . . . . . 73 31 . . . . . . . . . . . . . . . . . . . . . . . . . . . . . . . . . Shots Hit Robots 1525 | 7 89 27 75 15 68 10 130 52 35 132 67 1 5 13 4 28 22 42 1 . 1 1 33 . 11 28 9 11 16 11 11 5 . 1 91 33 27 21 37 161 194 Core Hits 777 | 4 34 13 45 17 25 1 81 30 22 72 36 1 8 . 6 11 27 29 8 . . . 23 . 3 19 3 8 4 4 2 1 . 1 57 13 13 6 15 72 63 Critical Kills 5 | . . . . . . . 1 . . 1 3 . . . . . . . . . . . . . . . . . . . . . . . . . . . . . . Critical Parts Destroyed 11 | . . . . . 1 . 3 1 . 3 3 . . . . . . . . . . . . . . . . . . . . . . . . . . . . . . Critical Strikes 103 | . 8 2 3 1 4 . 7 2 . 5 13 . . . . 2 1 4 . . . . 1 . 1 1 1 1 2 1 . . . 1 9 3 2 1 1 16 10 Burn 13 | . 8 2 2 1 . . . . . . . . . . . . . . . . . . . . . . . . . . . . . . . . . . . . . Destroy 16 | . . . . . 1 . 4 1 . 4 6 . . . . . . . . . . . . . . . . . . . . . . . . . . . . . . Blast 7 | . . . . . . . . . . . 3 . . . . . . . . . . . . . . . . . . . . . . . 2 2 . . . . . Corrupt 6 | . . . 1 . . . 3 1 . 1 . . . . . . . . . . . . . . . . . . . . . . . . . . . . . . . Sever 39 | . . . . . 3 . . . . . . . . . . . . . . . . . . . . 1 . . 1 1 . . . . 3 . 2 1 1 16 10 Impale 22 | . . . . . . . . . . . 4 . . . . 2 1 4 . . . . 1 . 1 . 1 1 1 . . . . 1 4 1 . . . . . Melee Attacks 1489 | . 2 . . . 43 . 2 44 1 16 125 39 17 14 7 32 8 80 26 8 31 4 95 1 31 27 8 14 27 51 9 6 30 6 81 34 40 48 51 232 199 Impact 61 | . 2 . . . . . . 42 1 16 . . . . . . . . . . . . . . . . . . . . . . . . . . . . . . . Slashing 682 | . . . . . 38 . 2 . . . 5 . . . 3 1 . 3 . . 1 . 3 . . 5 7 . 2 10 4 6 27 4 22 13 40 48 51 232 155 Piercing 641 | . . . . . . . . . . . 119 38 17 1 4 18 8 77 26 8 30 4 86 1 30 6 1 13 24 40 5 . 3 2 59 21 . . . . . Entropic 44 | . . . . . . . . . . . . . . . . . . . . . . . . . . . . . . . . . . . . . . . . . 44 Sneak Attacks 228 | . 1 . . . 5 . . 2 . 2 24 1 2 13 . 23 7 17 1 . 1 . 17 . 4 19 8 7 3 4 . 5 . . 17 6 10 3 1 22 3 Combat Hostiles 19 | . . . . . . . . . . . . . . . . 11 . 1 . . . . . . . . . . . . . . . . 3 . . . . 4 . Follow-up Attacks 67 | . . . . . 5 . . . . . . . . . . . . . . . . . . . . 1 1 . . . . . . 1 8 . . . . 7 44 Damage Inflicted 81158 | 103 1285 405 1675 598 2280 118 4041 1224 771 3042 2818 88 507 . 333 1086 5015 2260 1012 . 110 41 2211 . 436 1774 558 506 641 511 501 479 . 56 7298 2780 3247 2023 2659 11380 15286 Guns 11047 | 100 1169 339 1061 243 372 118 3425 1216 657 2211 136 . . . . . . . . . . . . . . . . . . . . . . . . . . . . . . Cannons 4403 | . . . . . . . 282 . . 109 406 . 26 . . 30 . . . . . . 144 . . 46 34 . 182 . 347 . . . 1666 830 . 68 88 . 145 Explosions 16061 | . 31 53 537 316 282 . 212 . 114 540 82 . 253 . 182 238 4648 275 922 . . . 712 . . 1291 . . . . . . . . 3337 769 . . . 1267 . Melee 49383 | . 72 . . . 1626 . 46 . . 147 2194 88 228 . 151 818 367 1985 90 . 110 41 1355 . 436 437 524 506 459 511 154 479 . 56 2295 1181 3247 1955 2571 10113 15141 Ramming 264 | 3 13 13 77 39 . . 76 8 . 35 . . . . . . . . . . . . . . . . . . . . . . . . . . . . . . . Kinetic 9663 | 64 135 . 178 108 372 118 1482 491 657 2211 542 . 26 . . 30 . . . . . . 144 . . 46 34 . 182 . 347 . . . 1666 830 . . . . . Thermal 2147 | 36 959 225 394 239 . . 212 . . . 82 . . . . . . . . . . . . . . . . . . . . . . . . . . . . . . Explosive 15352 | . . 53 359 212 282 . . . 114 540 . . 253 . 182 238 4648 275 922 . . . 712 . . 1291 . . . . . . . . 3337 667 . . . 1267 . Electromagnetic 4349 | . 106 114 667 . . . 2225 725 . 109 . . . . . . . . . . . . . . . . . . . . . . . . . 102 . 68 88 . 145 Impact 219 | . 72 . . . . . . . . 147 . . . . . . . . . . . . . . . . . . . . . . . . . . . . . . . Slashing 33963 | . . . . . 1626 . 46 . . . 162 . . . 151 54 . 164 . . 110 . 118 . . 225 475 . 114 87 64 479 . . 1133 779 3247 1955 2571 10113 10290 Piercing 10350 | . . . . . . . . . . . 2032 88 228 . . 764 367 1821 90 . . 41 1237 . 436 212 49 506 345 424 90 . . 56 1162 402 . . . . . Entropic 4851 | . . . . . . . . . . . . . . . . . . . . . . . . . . . . . . . . . . . . . . . . . 4851 Highest Corruption 13 | . 1 1 1 1 1 6 . . . . 4 . . . . . . . . . . . . 7 7 . . . 2 . 6 6 6 . 2 8 . 4 9 1 13 Average Corruption 1 | . 1 1 1 1 1 1 . . . . 1 . . . . . . . . . . . . 7 7 . . . 1 . 5 6 6 . 1 2 . 3 4 1 2 Corruption Purged 16 | . . . . . . . . . . . 6 . . . . . . . . . . . . . 5 . . 2 . . . . . . 2 . . . . 1 . Corruption Blocked 16 | . . . . . . . . . . . . . . . . . . . . . . . . . . . . . . . . . 16 . . . . . . . . Effects 164 | . 8 18 1 9 23 2 . . . . 15 . . . . . . . . . . . . 1 12 . . . 3 . 3 1 . . 1 12 . 2 25 16 12 Message Errors 36 | . 2 3 . 2 5 . . . . . 6 . . . . . . . . . . . . . 1 . . . . . . . . . 1 3 . . 6 4 3 Matter Fused 39 | . 3 9 1 2 6 . . . . . 4 . . . . . . . . . . . . . 4 . . . 1 . . . . . . 2 . . 3 3 1 Heat Flow Errors 18 | . . 4 . 1 1 2 . . . . 1 . . . . . . . . . . . . . 2 . . . 1 . . . . . . . . . 3 1 2 Energy Discharges 20 | . . 1 . 3 4 . . . . . . . . . . . . . . . . . . . 2 . . . . . . . . . . 4 . 1 1 . 4 Parts Rejected 3 | . . . . . . . . . . . . . . . . . . . . . . . . 1 . . . . . . . . . . . . . . 1 1 . Parts Fused 3 | . . . . . . . . . . . 1 . . . . . . . . . . . . . . . . . 1 . . . . . . . . . 1 . . Data Loss (minor) 23 | . 1 1 . 1 3 . . . . . 2 . . . . . . . . . . . . . . . . . . . 2 1 . . . 1 . . 5 5 1 Data Loss (major) 16 | . 2 . . . 2 . . . . . 1 . . . . . . . . . . . . . 2 . . . . . 1 . . . . 1 . 1 4 1 1 Misfires 2 | . . . . . 1 . . . . . . . . . . . . . . . . . . . . . . . . . . . . . . 1 . . . . . Alerts 3 | . . . . . . . . . . . . . . . . . . . . . . . . . 1 . . . . . . . . . . . . . 1 1 . Weapon Failures 1 | . . . . . 1 . . . . . . . . . . . . . . . . . . . . . . . . . . . . . . . . . . . . Overload Shots . | . . . . . . . . . . . . . . . . . . . . . . . . . . . . . . . . . . . . . . . . . . Overflow Damage 6636 | . 52 . 26 18 45 . 77 . . 102 393 . 100 . . 246 5 175 . . 50 1 156 . 45 102 40 126 127 85 48 250 . . 854 283 405 860 429 1149 387 Projectiles 171 | . . . . . . . . . . . 34 . 2 . . . . . . . . . . . . . . . . . 35 . . . 32 68 . . . . . Explosions 938 | . . . 26 18 . . 76 . . . . . 8 . . 25 . 8 . . . . 11 . . 76 . . . . . . . . 440 125 . . . 125 . Melee 5527 | . 52 . . . 45 . 1 . . 102 359 . 90 . . 221 5 167 . . 50 1 145 . 45 26 40 126 127 85 13 250 . . 382 90 405 860 429 1024 387 Knockbacks 34 | 1 . . 1 . . . 3 . . . 1 . . . . 1 . . . . . . . . . . . . . . 4 . . . 14 9 . . . . . Impact 2 | 1 . . 1 . . . . . . . . . . . . . . . . . . . . . . . . . . . . . . . . . . . . . . Kinetic 30 | . . . . . . . 3 . . . 1 . . . . 1 . . . . . . . . . . . . . . 4 . . . 13 8 . . . . . Secondary 2 | . . . . . . . . . . . . . . . . . . . . . . . . . . . . . . . . . . . 1 1 . . . . . Self-Inflicted Damage 156 | . 20 . 29 . 80 . . . . . . . . . . . . . . . . . . . . . . . . . . . . . . 27 . . . . . Shots 5 | . 1 . 1 . 2 . . . . . . . . . . . . . . . . . . . . . . . . . . . . . . 1 . . . . . Rammed 39 | 1 7 4 7 5 . . 10 1 . 4 . . . . . . . . . . . . . . . . . . . . . . . . . . . . . . . Targets Rammed 43 | 1 7 4 9 5 . . 11 1 . 5 . . . . . . . . . . . . . . . . . . . . . . . . . . . . . . . Kicked . | . . . . . . . . . . . . . . . . . . . . . . . . . . . . . . . . . . . . . . . . . . Crushed 4 | . . . 2 . . . 1 . . 1 . . . . . . . . . . . . . . . . . . . . . . . . . . . . . . . Highest Temperature 318 | 18 256 246 140 226 120 130 315 102 123 154 147 21 287 . . 28 2 58 90 2 58 108 60 . 179 6 4 . 223 72 14 . 2 36 234 25 197 318 302 198 198 Average Temperature 142 | 9 62 90 39 71 33 89 136 33 41 45 20 13 156 . . 13 2 21 14 1 22 57 24 . 86 5 2 . 44 31 6 . 1 19 69 25 38 99 121 197 189 Received Heat Transfer 3221 | . 285 45 270 57 . . 585 72 225 504 51 . 6 . 9 . . 33 . . . . 45 . . 27 . . . . 9 . 9 . 147 159 99 171 146 92 175 Effects 8 | . . . . . . . 1 . . . . . 1 . . . . . . . . . . . . . . . . . . . . . 2 . . 1 3 . . Energy Bleed 2 | . . . . . . . 1 . . . . . 1 . . . . . . . . . . . . . . . . . . . . . . . . . . . . Interference 6 | . . . . . . . . . . . . . . . . . . . . . . . . . . . . . . . . . . . 2 . . 1 3 . . Siege Activations . | . . . . . . . . . . . . . . . . . . . . . . . . . . . . . . . . . . . . . . . . . . Robots Corrupted 11 | . . 1 1 . . . 5 1 . 1 . . . . . . . . . . . . . . . . . . . . . . . . . . . . 1 . 1 Combat Hostiles 9 | . . . 1 . . . 4 1 . 1 . . . . . . . . . . . . . . . . . . . . . . . . . . . . 1 . 1 Parts Fried 34 | . 4 1 3 . . . 12 3 . 4 . . . . . . . . . . . . . . . . . . . 2 . . . . . 4 . . 1 . . Impact Corruptions 6 | . 1 . 1 . . . 1 . . 3 . . . . . . . . . . . . . . . . . . . . . . . . . . . . . . . Robots Melted 1 | . 1 . . . . . . . . . . . . . . . . . . . . . . . . . . . . . . . . . . . . . . . . Combat Hostiles . | . . . . . . . . . . . . . . . . . . . . . . . . . . . . . . . . . . . . . . . . . . Parts Melted 11 | . 6 3 2 . . . . . . . . . . . . . . . . . . . . . . . . . . . . . . . . . . . . . . Heat Transferred 5532 | 111 3145 777 879 470 . . 100 . . . 50 . . . . . . . . . . . . . . . . . . . . . . . . . . . . . . Parts Sabotaged . | . . . . . . . . . . . . . . . . . . . . . . . . . . . . . . . . . . . . . . . . . . Parts Stolen 2 | . . . . . . . . . . . . . 2 . . . . . . . . . . . . . . . . . . . . . . . . . . . . Parts Stripped . | . . . . . . . . . . . . . . . . . . . . . . . . . . . . . . . . . . . . . . . . . . Power Chain Reactions 5 | . 1 . 4 . . . . . . . . . . . . . . . . . . . . . . . . . . . . . . . . . . . . . . Missiles Intercepted 9 | . . . . . . . . . . . . . . . . . . . . . . . . . . . . . . . . . . . . . . . . . 9 Alert | -11 -10 -10 -9 -9 -9 -8 -8 -8 -8 -8 -7 -7 -7 -7 -6 -6 -6 -6 -6 -6 -6 -5 -5 -5 -5 -5 -5 -5 -5 -4 -4 -4 -4 -3 -3 -3 -2 -2 -2 -1 -1 ------- Run | Jun Mat Min Mat Min Exi Min Mat Gar Mat Sto Fac Low Low Zio Pro Fac Was Fac Low Low Dat Pro Fac Was Fac Ext Cet Arc Hub Fac Upp Upp War Pro Res Qua Res Tes Sec Acc Com Peak Influence 1915 | 15 212 95 661 434 . . 650 1638 798 901 707 . . . . 511 210 1299 . . . . 442 186 267 666 438 429 481 316 . . . . 540 578 599 571 492 1512 1915 Initial 967 | . 9 . . 213 . . . 391 798 266 298 . . . . 157 115 147 . . . . 56 154 130 130 160 175 . 43 . . . . 3 281 249 336 177 169 967 Average 420 | 7 59 19 437 212 . . 373 1055 622 696 481 . . . . 313 190 839 . . . . 130 165 139 355 365 216 124 168 . . . . 317 390 351 217 271 518 1428 Maximum Alert Level 5 | . 1 . 2 2 . . 2 5 3 3 3 . . . . 2 1 4 . . . . 2 . 1 2 2 2 2 1 . . . . 2 2 2 2 2 4 5 Low Security (%) 31 | 100 97 100 17 52 . 100 19 . . . . . . . . 14 32 3 . . . . 73 100 82 25 7 40 72 72 . . . . 20 . . 51 15 7 . Level 1 24 | . 2 . 8 37 . . 32 1 . 6 31 . . . . 67 67 7 . . . . 23 . 17 21 33 36 13 27 . . . . 42 61 71 31 77 45 . Level 2 27 | . . . 73 9 . . 47 31 90 44 67 . . . . 18 . 18 . . . . 3 . . 53 59 23 13 . . . . . 36 38 28 16 6 26 . Level 3 6 | . . . . . . . . 10 9 49 . . . . . . . 42 . . . . . . . . . . . . . . . . . . . . . 8 10 Level 4 7 | . . . . . . . . 51 . . . . . . . . . 27 . . . . . . . . . . . . . . . . . . . . . 12 61 Level 5 . | . . . . . . . . 6 . . . . . . . . . . . . . . . . . . . . . . . . . . . . . . . . 6 High Security . | . . . . . . . . . . . . . . . . . . . . . . . . . . . . . . . . . . . . . . . . . 21 Max Security . | . . . . . . . . . . . . . . . . . . . . . . . . . . . . . . . . . . . . . . . . . . Squads Dispatched 122 | . 4 . 6 . . . 8 . 2 6 12 . . . . . . 8 . . . . 5 . 2 1 . . 5 5 . . . . 10 5 3 3 5 18 14 Investigation 45 | . 4 . 5 . . . 5 . 1 2 7 . . . . . . 2 . . . . 2 . 1 1 . . 2 2 . . . . 3 . 1 . . 5 2 Extermination 25 | . . . . . . . . . . . 3 . . . . . . 1 . . . . 2 . 1 . . . . 2 . . . . 2 2 . 2 3 5 2 Reinforcement 31 | . . . 1 . . . 3 . . . 2 . . . . . . 4 . . . . 1 . . . . . 2 1 . . . . 4 2 2 1 2 5 1 Assault 17 | . . . . . . . . . . 2 . . . . . . . . . . . . . . . . . . 1 . . . . . 1 1 . . . 3 9 Garrison 4 | . . . . . . . . . 1 2 . . . . . . . 1 . . . . . . . . . . . . . . . . . . . . . . . Intercept . | . . . . . . . . . . . . . . . . . . . . . . . . . . . . . . . . . . . . . . . . . . Searches Triggered 3 | . . . . . . . . . . . 2 . . . . . . . . . . . . . . . . . . . . . . . . . . 1 . . . Construction Impeded 2 | . . . . . . . 1 . . . . . . . . . . . . . . . . . . . . . 1 . . . . . . . . . . . . Haulers Reinforced 8 | . . . . . . . . . . . 2 . . . . . . 2 . . . . . . . . . . . . . . . . 2 . 1 . . 1 . Active Scanning Responses . | . . . . . . . . . . . . . . . . . . . . . . . . . . . . . . . . . . . . . . . . . . Cargo Convoy Interrupts 3 | . . . . . . . . . . . . . . . . . . 1 . . . . . . 1 . . . . 1 . . . . . . . . . . . Stealth | -11 -10 -10 -9 -9 -9 -8 -8 -8 -8 -8 -7 -7 -7 -7 -6 -6 -6 -6 -6 -6 -6 -5 -5 -5 -5 -5 -5 -5 -5 -4 -4 -4 -4 -3 -3 -3 -2 -2 -2 -1 -1 --------- Run | Jun Mat Min Mat Min Exi Min Mat Gar Mat Sto Fac Low Low Zio Pro Fac Was Fac Low Low Dat Pro Fac Was Fac Ext Cet Arc Hub Fac Upp Upp War Pro Res Qua Res Tes Sec Acc Com Distress Signals 59 | . . . 5 . . . 5 1 1 4 5 . . . . 1 . 1 . . . . 1 . 1 3 1 . 3 1 . . 2 1 1 1 10 . 5 6 . Communications Jammed 120 | . . . . . . . . . . . . . . . . . . . . . . . . . . . . . . . . . 8 . 37 17 16 38 4 . . Distress Signals 71 | . . . . . . . . . . . . . . . . . . . . . . . . . . . . . . . . . 8 . 37 . 16 6 4 . . Times Spotted 986 | . 20 7 36 11 65 1 42 22 13 39 47 9 6 . 14 9 6 34 4 7 4 13 24 2 19 16 12 6 15 19 7 . 62 . 38 45 35 49 57 86 85 Peak Tracking Total 24 | . 2 3 4 4 9 2 5 3 4 5 8 6 2 . 4 3 5 4 4 7 4 9 5 3 18 5 5 1 11 5 5 . 10 . 9 13 14 10 12 8 24 Tactical Retreats 145 | . . . . . 22 . . . 1 . 19 7 2 . 6 1 . 3 . 5 . 4 1 . 3 . 1 . 3 5 1 . 3 . 2 7 7 15 7 15 5 Traps | -11 -10 -10 -9 -9 -9 -8 -8 -8 -8 -8 -7 -7 -7 -7 -6 -6 -6 -6 -6 -6 -6 -5 -5 -5 -5 -5 -5 -5 -5 -4 -4 -4 -4 -3 -3 -3 -2 -2 -2 -1 -1 ------- Run | Jun Mat Min Mat Min Exi Min Mat Gar Mat Sto Fac Low Low Zio Pro Fac Was Fac Low Low Dat Pro Fac Was Fac Ext Cet Arc Hub Fac Upp Upp War Pro Res Qua Res Tes Sec Acc Com Traps Triggered 27 | . . . 3 . . . . 4 . . 2 . . . . 1 . 4 . . . . 2 . . 2 . . . 1 . . . . 1 . 1 1 . 5 . Indirectly . | . . . . . . . . . . . . . . . . . . . . . . . . . . . . . . . . . . . . . . . . . . Trap Hack Attempts 132 | . . . . . . . . . . . 30 . . . . 4 . . . . . . 6 . 41 37 . . 14 . . . . . . . . . . . . Triggered 2 | . . . . . . . . . . . 1 . . . . . . . . . . . . . . 1 . . . . . . . . . . . . . . . Disarmed 1 | . . . . . . . . . . . . . . . . . . . . . . . 1 . . . . . . . . . . . . . . . . . . Reprogrammed 63 | . . . . . . . . . . . 20 . . . . 1 . . . . . . 1 . 22 6 . . 6 6 . . . . . . . . . . 1 Reused 24 | . . . . . . . . . . . 6 . . . . . . 3 . . . . . . 4 . . . 6 5 . . . . . . . . . . . Traps Extracted 17 | . . . . . . . . . . . 6 . . . . . . 4 . . . . . . 5 . . . . 2 . . . . . . . . . . . Installed 11 | . . . . . . . . . . . . . . . . . . 7 . . . . . . . . . . . 4 . . . . . . . . . . . Triggered 35 | . . . . . . . . . . . 6 1 1 . . . . 3 . . . . . . 4 . . . 6 5 . 1 8 . . . . . . . . Most Traps Carried 8 | . . . . . . . . . . . 6 6 6 6 6 6 6 6 3 3 3 3 3 3 8 8 8 8 8 8 6 6 6 6 6 6 6 6 . . . Exploded 3 | . . . . . 3 . . . . . . . . . . . . . . . . . . . . . . . . . . . . . . . . . . . . Time Bombs Activated 1 | . . . . . . . . . . . . . . . 1 . . . . . . . . . . . . . . . . . . . . . . . . . . Exploded 1 | . . . . . . . . . . . . . . . 1 . . . . . . . . . . . . . . . . . . . . . . . . . . Machines | -11 -10 -10 -9 -9 -9 -8 -8 -8 -8 -8 -7 -7 -7 -7 -6 -6 -6 -6 -6 -6 -6 -5 -5 -5 -5 -5 -5 -5 -5 -4 -4 -4 -4 -3 -3 -3 -2 -2 -2 -1 -1 ---------- Run | Jun Mat Min Mat Min Exi Min Mat Gar Mat Sto Fac Low Low Zio Pro Fac Was Fac Low Low Dat Pro Fac Was Fac Ext Cet Arc Hub Fac Upp Upp War Pro Res Qua Res Tes Sec Acc Com Machines Disabled 87 | . . 2 2 1 6 . 3 9 3 8 6 1 1 . . 1 . 1 . . 1 . 7 . . 3 . 2 4 . . . . . 5 10 . 6 4 . 1 Max in Single Turn 6 | . . 2 1 1 2 . 1 1 1 1 4 1 1 . . 1 . . . . 1 . 6 . . 2 . . . . . . . . 1 2 . 1 1 . 1 Garrison Access 14 | . . . . . . . . . . 1 3 . . . . 1 . 1 . . . . . . . . . . 1 2 . . . . . 1 . 1 . 3 . Garrison Relay 2 | . . . . . . . . 2 . . . . . . . . . . . . . . . . . . . . . . . . . . . . . . . . . Network Hub 3 | . . . . . . . . . . . . . . . . . . . . . . . . . . . . . 3 . . . . . . . . . . . . Machines Repaired 1 | . . . . . . . . . . . . . . . . . . . . . . . . . . . . . 1 . . . . . . . . . . . . Machines Sabotaged . | . . . . . . . . . . . . . . . . . . . . . . . . . . . . . . . . . . . . . . . . . . Overloaded Fab Kills . | . . . . . . . . . . . . . . . . . . . . . . . . . . . . . . . . . . . . . . . . . . Hacking | -11 -10 -10 -9 -9 -9 -8 -8 -8 -8 -8 -7 -7 -7 -7 -6 -6 -6 -6 -6 -6 -6 -5 -5 -5 -5 -5 -5 -5 -5 -4 -4 -4 -4 -3 -3 -3 -2 -2 -2 -1 -1 --------- Run | Jun Mat Min Mat Min Exi Min Mat Gar Mat Sto Fac Low Low Zio Pro Fac Was Fac Low Low Dat Pro Fac Was Fac Ext Cet Arc Hub Fac Upp Upp War Pro Res Qua Res Tes Sec Acc Com Machines Accessed 305 | . 10 . 8 . 2 . 13 3 5 16 39 1 3 1 . 12 . 24 . 1 3 1 22 . 14 16 1 . 9 20 1 . 3 . 12 9 3 8 11 24 10 Terminals 184 | . 7 . 4 . . . 7 3 3 12 20 . 1 . . 8 . 13 . . . 1 11 . 9 15 1 . 8 9 . . . . 8 5 1 5 9 15 9 Fabricators 23 | . . . . . . . . . . . 5 . . . . 1 . 3 . . . . 4 . 1 . . . . 3 . . . . 2 . . . . 4 . Repair Stations 23 | . 1 . 1 . . . 2 . . 2 3 . . . . . . 1 . . . . 2 . 1 . . . . 2 . . . . 1 2 1 1 1 1 1 Recycling Units 26 | . 2 . 2 . . . 2 . . 1 4 . . . . 1 . 3 . . . . 5 . 1 1 . . . 2 . . . . 1 . . . . 1 . Scanalyzers 17 | . . . 1 . . . 1 . 2 . 3 . . . . 1 . 1 . . . . . . 2 . . . . 2 . . . . . 1 1 1 1 . . Garrison Access 18 | . . . . . . . 1 . . 1 4 . . . . 1 . 3 . . . . . . . . . . 1 2 . . . . . 1 . 1 . 3 . Total Hacks 1126 | . 27 . 23 . 2 . 43 4 20 39 111 1 4 7 . 32 . 76 . 8 17 4 92 . 69 56 2 . 51 87 1 . 11 . 68 37 9 40 43 94 48 Successful 710 | . 9 . 13 . 2 . 19 3 15 22 82 1 4 7 . 21 . 39 . 8 17 4 71 . 38 35 1 . 27 67 1 . 11 . 48 21 5 27 31 48 13 Failed 413 | . 17 . 10 . . . 24 1 5 17 29 . . . . 11 . 37 . . . . 21 . 31 20 1 . 24 20 . . . . 20 16 4 12 12 46 35 Catastrophic 59 | . 3 . 1 . . . 7 . . . 3 . . . . 2 . 4 . . . . 2 . 5 1 . . 3 4 . . . . 2 4 1 . 1 7 9 Database Lockouts 3 | . 1 . . . . . . . . . . . . . . . . . . . . . . . . 1 . . . . . . . . . . . 1 . . . Manual 498 | . 13 . 13 . 1 . 21 . . 12 48 . . . . 12 . 42 . . . . 56 . 29 13 1 . 31 49 . . 1 . 39 14 5 20 23 36 19 Terminals 745 | . 22 . 16 . . . 24 4 10 28 55 . 2 . . 23 . 39 . . . 4 56 . 52 51 2 . 49 54 . . . . 42 28 5 36 37 61 45 Fabricators 78 | . . . . . . . . . . . 16 . . . . 2 . 10 . . . . 10 . 4 . . . . 7 . . . . 13 . . . . 16 . Repair Stations 79 | . 2 . 3 . . . 7 . . 6 8 . . . . . . 5 . . . . 6 . 3 . . . . 6 . . . . 8 7 2 2 4 7 3 Recycling Units 86 | . 3 . 2 . . . 4 . . 3 12 . . . . 4 . 14 . . . . 20 . 2 5 . . . 7 . . . . 5 . . . . 5 . Scanalyzers 57 | . . . 2 . . . 7 . 10 . 8 . . . . 2 . 3 . . . . . . 8 . . . . 11 . . . . . 1 2 1 2 . . Garrison Access 32 | . . . . . . . 1 . . 2 12 . . . . 1 . 5 . . . . . . . . . . 2 2 . . . . . 1 . 1 . 5 . Terminal Hacks 369 | . 6 . 7 . 2 . 6 3 5 13 30 1 4 7 . 10 . 12 . 8 17 4 25 . 22 27 1 . 22 25 1 . 11 . 20 9 1 18 21 22 9 Record 23 | . . . . . 1 . . . . . . . 2 . . . . . . 8 2 4 . . . . . . 1 1 . . . . . 1 . . . 1 2 Part Schematic 44 | . 1 . . . . . . . . 1 3 . . 7 . 3 . 1 . . 9 . 4 . . 3 . . 3 4 . . . . 1 . 1 1 1 1 . Robot Schematic 3 | . . . . . . . . . . . . . . . . . . . . . 3 . . . . . . . . . . . . . . . . . . . . Robot Analysis 12 | . 2 . 1 . . . . . . . 2 . . . . . . . . . . . 1 . . 2 . . . . . . . . . . . . . 3 1 Prototype ID Bank 25 | . 1 . 2 . . . 1 . . 1 1 . . . . . . . . . 3 . . . . 2 . . 1 1 . . 10 . . . . 1 1 . . Open Door 28 | . . . . . . . . 1 . 4 . 1 2 . . . . . . . . . . . . 9 1 . . . 1 . 1 . 1 . . . 3 4 . Level Access Points 3 | . . . . . . . . . . . . . . . . . . . . . . . . . . . . . 1 . . . . . . 1 . . 1 . . Branch Access Points 11 | . . . 1 . . . 1 . 1 . 1 . . . . 1 . 1 . . . . 1 . 1 . . . . 1 . . . . 1 . . . . 1 . Emergency Access Points 4 | . . . . . . . . 1 . . . . . . . . . . . . . . . . . . . . 1 1 . . . . . . . . . . 1 Machine Index 4 | . . . . . . . . . . . . . . . . . . . . . . . . . 1 . . . 1 1 . . . . . . . . 1 . . Terminal Index 9 | . . . . . . . . . . . 1 . . . . . . 1 . . . . . . 1 . . . 1 1 . . . . 1 . . . 1 1 1 Fabricator Index 2 | . . . . . . . . . . . . . . . . . . . . . . . . . 1 . . . . . . . . . . . . 1 . . . Repair Station Index 4 | . . . . . . . . . . . . . . . . 1 . . . . . . 1 . 1 . . . . . . . . . . . . 1 . . . Recycling Unit Index 1 | . . . . . . . . . . . 1 . . . . . . . . . . . . . . . . . . . . . . . . . . . . . . Scanalyzer Index 7 | . . . . . . . 1 . . . 1 . . . . 1 . . . . . . 1 . . . . . . . . . . . 1 . . 1 1 . . Garrison Index 7 | . . . . . . . . . . . 1 . . . . 1 . 1 . . . . 1 . . . . . 1 . . . . . 1 . . . . 1 . Alert Level 19 | . . . . . . . . . 1 1 2 . . . . . . 1 . . . . 2 . 1 1 . . 1 2 . . . . 1 1 . 3 1 1 . Unreport Threat 25 | . . . . . . . . . 2 1 3 . . . . . . . . . . . . . . 4 . . 3 . . . . . 2 1 . 4 3 2 . Locate Traps 29 | . . . 1 . . . . . . 1 4 . . . . 1 . 1 . . . . 3 . 3 1 . . . 3 . . . . 3 . . 2 2 2 2 Reprogram Traps 7 | . . . . . . . . . . . 2 . . . . . . . . . . . . . 3 . . . . 1 . . . . . . . . . . 1 Dispatch Records 1 | . . . . . . . . . . . . . . . . . . . . . . . . . . . . . . 1 . . . . . . . . . . . Maintenance Status 2 | . . . . . . . . . . . . . . . . . . . . . . . 1 . . . . . . . . . . . 1 . . . . . . Security Status 3 | . . . . . . . . . . . . . . . . . . . . . . . 1 . . . . . 1 . . . . . 1 . . . . . . Surveillance Status 2 | . . . . . . . . . . . . . . . . . . . . . . . . . . . . . . . . . . . . 1 . 1 . . . Patrol Status 5 | . . . . . . . . . . . 1 . . . . . . . . . . . 1 . . . . . 1 1 . . . . 1 . . . . . . Transport Status 3 | . . . . . . . . . . . 1 . . . . . . . . . . . . . . . . . . . . . . . . 2 . . . . . Reinforcement Status 1 | . . . . . . . . . . . . . . . . . . . . . . . . . . . . . . . . . . . . . . . . 1 . Recall Investigation 3 | . . . . . . . . . . . . . . . . . . . . . . . . . . . . . . 1 . . . . 2 . . . . . . Recall Extermination 8 | . . . . . . . . . . . 1 . . . . . . 1 . . . . 2 . 1 . . . . 2 . . . . . . . . 1 . . Recall Reinforcements 4 | . . . . . . . . . . . 1 . . . . . . . . . . . . . . . . . . . . . . . . . . . 1 2 . Recall Assault 2 | . . . . . . . . . . . . . . . . . . . . . . . . . . . . . 1 . . . . . 1 . . . . . . Hauler Manifests 22 | . . . 1 . . . 1 . 1 2 2 . . . . 1 . 2 . . . . 2 . 3 1 . . . 2 . . . . 1 1 . 1 1 . . Registered Components 1 | . . . . . . . . . . . . . . . . . . . . . . . . . 1 . . . . . . . . . . . . . . . . Registered Prototypes 5 | . 1 . . . . . . . . . 1 . . . . . . . . . . . 1 . 1 1 . . . . . . . . . . . . . . . Zone Layout 37 | . 1 . 1 . . . 2 . . 2 1 . . . . 1 . 3 . . . . 3 . 4 3 . . 5 2 . . . . 1 1 . 2 3 2 . Patrol Navigation 1 | . . . . . . . . 1 . . . . . . . . . . . . . . . . . . . . . . . . . . . . . . . . . EX-Prototype ID Bank 1 | . . . . . 1 . . . . . . . . . . . . . . . . . . . . . . . . . . . . . . . . . . . . Disengage Seal 1 | . . . . . . . . . . . . . . . . . . . . . . . . . . . . . . . . . . . . . . . . . 1 Fabricator Hacks 43 | . . . . . . . . . . . 10 . . . . 1 . 5 . . . . 6 . 2 . . . . 5 . . . . 5 . . . . 9 . Network Status 7 | . . . . . . . . . . . 1 . . . . 1 . 1 . . . . 1 . . . . . . 1 . . . . 1 . . . . 1 . Load Schematic 16 | . . . . . . . . . . . 4 . . . . . . 2 . . . . 2 . 1 . . . . 1 . . . . 2 . . . . 4 . Build 20 | . . . . . . . . . . . 5 . . . . . . 2 . . . . 3 . 1 . . . . 3 . . . . 2 . . . . 4 . Repair Station Hacks 63 | . 2 . 2 . . . 4 . . 4 5 . . . . . . 4 . . . . 6 . 2 . . . . 6 . . . . 8 6 2 2 4 4 2 Scan Component 33 | . 1 . 1 . . . 2 . . 3 3 . . . . . . 2 . . . . 3 . 1 . . . . 3 . . . . 4 3 1 1 2 2 1 Repair 30 | . 1 . 1 . . . 2 . . 1 2 . . . . . . 2 . . . . 3 . 1 . . . . 3 . . . . 4 3 1 1 2 2 1 Recycling Unit Hacks 20 | . . . . . . . . . . 1 3 . . . . 1 . 1 . . . . 7 . 2 1 . . . 2 . . . . 1 . . . . 1 . Process 1 | . . . . . . . . . . . . . . . . . . . . . . . 1 . . . . . . . . . . . . . . . . . . Report Inventory 1 | . . . . . . . . . . . . . . . . . . . . . . . 1 . . . . . . . . . . . . . . . . . . Retrieve Matter 1 | . . . . . . . . . . . . . . . . . . . . . . . 1 . . . . . . . . . . . . . . . . . . Retrieve Components 17 | . . . . . . . . . . 1 3 . . . . 1 . 1 . . . . 4 . 2 1 . . . 2 . . . . 1 . . . . 1 . Scanalyzer 44 | . . . . . . . 6 . 10 . 6 . . . . 2 . 2 . . . . . . 4 . . . . 11 . . . . . . 2 . 1 . . Insert Component 21 | . . . . . . . 3 . 5 . 3 . . . . 1 . 1 . . . . . . 2 . . . . 3 . . . . . . 2 . 1 . . Analyze 23 | . . . . . . . 3 . 5 . 3 . . . . 1 . 1 . . . . . . 2 . . . . 8 . . . . . . . . . . . Garrison Access Hacks 15 | . . . . . . . 1 . . 1 3 . . . . 1 . 1 . . . . . . . . . . 1 2 . . . . . 1 . 1 . 3 . Unlock Access 1 | . . . . . . . 1 . . . . . . . . . . . . . . . . . . . . . . . . . . . . . . . . . . Seal Access 14 | . . . . . . . . . . 1 3 . . . . 1 . 1 . . . . . . . . . . 1 2 . . . . . 1 . 1 . 3 . Unauthorized Hacks 156 | . 1 . 4 . . . 2 . . 3 25 . . . . 6 . 14 . . . . 27 . 6 7 . . 4 16 . . . . 14 5 . 6 5 9 2 Terminals 81 | . . . 1 . . . 1 . . 2 8 . . . . 4 . 5 . . . . 12 . 5 4 . . 4 9 . . . . 6 4 . 5 4 5 2 Track 15 | . . . . . . . . . . . 1 . . . . . . . . . . . 3 . . . . . 1 1 . . . . 1 1 . 3 3 1 . Assimilate 20 | . . . . . . . 1 . . 1 4 . . . . 1 . 2 . . . . 3 . 2 1 . . . 2 . . . . . 1 . . . 2 . Botnet 27 | . . . . . . . . . . . 1 . . . . 2 . 2 . . . . 4 . 2 1 . . . 4 . . . . 4 1 . 1 1 2 2 Disrupt 4 | . . . . . . . . . . . 1 . . . . . . . . . . . 1 . . 1 . . . 1 . . . . . . . . . . . Operators 13 | . . . 1 . . . . . . 1 1 . . . . 1 . 1 . . . . 1 . 1 1 . . 1 1 . . . . 1 1 . 1 . . . Sabotage 2 | . . . . . . . . . . . . . . . . . . . . . . . . . . . . . 2 . . . . . . . . . . . . Fabricators 21 | . . . . . . . . . . . 6 . . . . . . 2 . . . . 3 . 1 . . . . 2 . . . . 6 . . . . 1 . Report 5 | . . . . . . . . . . . 1 . . . . . . . . . . . 1 . . . . . . 1 . . . . 2 . . . . . . Prioritize 8 | . . . . . . . . . . . 2 . . . . . . 1 . . . . 1 . 1 . . . . . . . . . 2 . . . . 1 . Liberate 2 | . . . . . . . . . . . 2 . . . . . . . . . . . . . . . . . . . . . . . . . . . . . . Haulers 6 | . . . . . . . . . . . 1 . . . . . . 1 . . . . 1 . . . . . . 1 . . . . 2 . . . . . . Repair Stations . | . . . . . . . . . . . . . . . . . . . . . . . . . . . . . . . . . . . . . . . . . . Recycling Units 43 | . 1 . 2 . . . 1 . . 1 5 . . . . 2 . 6 . . . . 12 . . 3 . . . 5 . . . . 2 . . . . 3 . Reject 16 | . . . . . . . . . . . 2 . . . . 1 . 3 . . . . 5 . . 1 . . . 2 . . . . 1 . . . . 1 . Recyclers 7 | . . . . . . . . . . . 1 . . . . . . 1 . . . . 2 . . 1 . . . 1 . . . . . . . . . 1 . Mask 15 | . . . . . . . . . . . 2 . . . . 1 . 2 . . . . 5 . . 1 . . . 2 . . . . 1 . . . . 1 . Tunnel 5 | . 1 . 2 . . . 1 . . 1 . . . . . . . . . . . . . . . . . . . . . . . . . . . . . . . Scanalyzers 4 | . . . 1 . . . . . . . . . . . . . . . . . . . . . . . . . . . . . . . . 1 . 1 1 . . Researchers 3 | . . . . . . . . . . . . . . . . . . . . . . . . . . . . . . . . . . . . 1 . 1 1 . . Extract 1 | . . . 1 . . . . . . . . . . . . . . . . . . . . . . . . . . . . . . . . . . . . . . Garrison Access 7 | . . . . . . . . . . . 6 . . . . . . 1 . . . . . . . . . . . . . . . . . . . . . . . Broadcast 1 | . . . . . . . . . . . 1 . . . . . . . . . . . . . . . . . . . . . . . . . . . . . . Decoy 2 | . . . . . . . . . . . 1 . . . . . . 1 . . . . . . . . . . . . . . . . . . . . . . . Redirect 1 | . . . . . . . . . . . 1 . . . . . . . . . . . . . . . . . . . . . . . . . . . . . . Reprogram 1 | . . . . . . . . . . . 1 . . . . . . . . . . . . . . . . . . . . . . . . . . . . . . Intercept 1 | . . . . . . . . . . . 1 . . . . . . . . . . . . . . . . . . . . . . . . . . . . . . Watchers 1 | . . . . . . . . . . . 1 . . . . . . . . . . . . . . . . . . . . . . . . . . . . . . Data Cores Recovered 7 | . . . . . . . 1 . 1 . . . . . . . . 2 . . . . 2 . . . . . . . . . . . . . . . . 1 . Used 1 | . . . . . . . . . . . . . . . . . . 1 . . . . . . . . . . . . . . . . . . . . . . . Hacking Detections 202 | . 9 . 5 . . . 11 2 5 11 34 . 1 . . 11 . 20 . . . . 11 . 9 4 . . 5 10 . . . . 9 5 1 5 6 18 10 Full Trace Events 32 | . 3 . . . . . 3 . 1 1 7 . . . . . . 2 . . . . 2 . 1 . . . . 2 . . . . 3 . 1 . . 5 1 Feedback Events 2 | . 1 . . . . . . . . . 1 . . . . . . . . . . . . . . . . . . . . . . . . . . . . . . Corruption 2 | . 1 . . . . . . . . . 1 . . . . . . . . . . . . . . . . . . . . . . . . . . . . . . Feedback Blocked . | . . . . . . . . . . . . . . . . . . . . . . . . . . . . . . . . . . . . . . . . . . Robot Schematics Acquired 7 | . . . . . . . . . . . . . . 4 . . . . . . 3 . . . . . . . . . . . . . . . . . . . . Robots Built 1 | . . . . . . . . . . . 1 . . . . . . . . . . . . . . . . . . . . . . . . . . . . . . Authchips . | . . . . . . . . . . . . . . . . . . . . . . . . . . . . . . . . . . . . . . . . . . Time 65 | . . . . . . . . . . . 38 . . . . . . . . . . . . . . . . . . 27 . . . . . . . . . . . Total Robot Build Rating 3 | . . . . . . . . . . . 3 . . . . . . . . . . . . . . . . . . . . . . . . . . . . . . Part Schematics Acquired 71 | . 1 . 1 . . . 3 . 3 1 5 . . 18 . 4 . 2 . . 9 . 4 . 2 3 . . 3 7 . . . . 1 . 1 1 1 1 . Parts Built 20 | . . . . . . . . . . . 4 . . . . . . 2 . . . . 3 . 1 . . . . 2 . . . . 3 . . . . 5 . Authchips 3 | . . . . . . . . . . . 1 . . . . . . 2 . . . . . . . . . . . . . . . . . . . . . . . Time 1217 | . . . . . . . . . . . 335 . . . . . . 79 . . . . 263 . 42 . . . . 207 . . . . 72 . . . . 219 . Total Part Build Rating 137 | . . . . . . . . . . . 16 . . . . . . 12 . . . . 21 . 6 . . . . 17 . . . . 24 . . . . 41 . Parts Repaired 30 | . 1 . 1 . . . 2 . . 1 2 . . . . . . 2 . . . . 3 . 1 . . . . 3 . . . . 4 3 1 1 2 2 1 Time 1411 | . 26 . 26 . . . 45 . . 32 49 . . . . . . 62 . . . . 178 . 95 . . . . 176 . . . . 330 199 22 34 71 46 20 Parts Recycled . | . . . . . . . . . . . . . . . . . . . . . . . . . . . . . . . . . . . . . . . . . . Recycled Matter 72 | . . . . . . . . . . . . . . . . . . . . . . . 72 . . . . . . . . . . . . . . . . . . Retrieved Matter 72 | . . . . . . . . . . . . . . . . . . . . . . . 72 . . . . . . . . . . . . . . . . . . Retrieved Components 52 | . . . . . . . . . . . 20 . . . . 1 . 2 . . . . 7 . 12 1 . . . 6 . . . . . . . . . 3 . Parts Scanalyzed 15 | . . . . . . . 3 . 3 . 2 . . . . 1 . 1 . . . . . . 2 . . . . 3 . . . . . . . . . . . Part Schematics Acquired 15 | . . . . . . . 3 . 3 . 2 . . . . 1 . 1 . . . . . . 2 . . . . 3 . . . . . . . . . . . Parts Damaged 3 | . . . . . . . . . . . . . . . . . . . . . . . . . 1 . . . . 2 . . . . . . . . . . . Bothacking | -11 -10 -10 -9 -9 -9 -8 -8 -8 -8 -8 -7 -7 -7 -7 -6 -6 -6 -6 -6 -6 -6 -5 -5 -5 -5 -5 -5 -5 -5 -4 -4 -4 -4 -3 -3 -3 -2 -2 -2 -1 -1 ------------ Run | Jun Mat Min Mat Min Exi Min Mat Gar Mat Sto Fac Low Low Zio Pro Fac Was Fac Low Low Dat Pro Fac Was Fac Ext Cet Arc Hub Fac Upp Upp War Pro Res Qua Res Tes Sec Acc Com Used RIF Installer . | . . . . . . . . . . . . . . . . . . . . . . . . . . . . . . . . . . . . . . . . . . Robots Hacked 29 | . . . . . 4 . . . . . 1 . . 13 . 2 . . . . . . 5 . 1 1 . 1 1 . . . . . . . . . . . . Non-combat 16 | . . . . . 3 . . . . . 1 . . 4 . 2 . . . . . . 5 . 1 . . . . . . . . . . . . . . . . Combat 13 | . . . . . 1 . . . . . . . . 9 . . . . . . . . . . . 1 . 1 1 . . . . . . . . . . . . Robot Hacks Applied 29 | . . . . . 4 . . . . . 1 . . 13 . 2 . . . . . . 5 . 1 1 . 1 1 . . . . . . . . . . . . parse_system 22 | . . . . . 4 . . . . . 1 . . 13 . . . . . . . . 1 . . 1 . 1 1 . . . . . . . . . . . . no_distress 1 | . . . . . . . . . . . . . . . . . . . . . . . 1 . . . . . . . . . . . . . . . . . . find_chute 4 | . . . . . . . . . . . . . . . . 1 . . . . . . 3 . . . . . . . . . . . . . . . . . . find_recycling 2 | . . . . . . . . . . . . . . . . 1 . . . . . . . . 1 . . . . . . . . . . . . . . . . Relay Couplers Released 14 | . . . . . . . . 9 . . 1 . . . . . . . . . . . . . . . . . . . . . . . . . 4 . . . . Machine Destruction 10 | . . . . . . . . 9 . . 1 . . . . . . . . . . . . . . . . . . . . . . . . . . . . . . Programmers 4 | . . . . . . . . . . . . . . . . . . . . . . . . . . . . . . . . . . . . . 4 . . . . Fabnet Peak Effective % . | . . . . . . . . . . . . . . . . . . . . . . . . . . . . . . . . . . . . . . . . . . Robots Rewired 17 | . . . . . . . . 3 . . . . . . . 4 . . . . . . . . . 10 . . . . . . . . . . . . . . . Allies Hacked . | . . . . . . . . . . . . . . . . . . . . . . . . . . . . . . . . . . . . . . . . . . Hacks Repelled . | . . . . . . . . . . . . . . . . . . . . . . . . . . . . . . . . . . . . . . . . . . Allies | -11 -10 -10 -9 -9 -9 -8 -8 -8 -8 -8 -7 -7 -7 -7 -6 -6 -6 -6 -6 -6 -6 -5 -5 -5 -5 -5 -5 -5 -5 -4 -4 -4 -4 -3 -3 -3 -2 -2 -2 -1 -1 -------- Run | Jun Mat Min Mat Min Exi Min Mat Gar Mat Sto Fac Low Low Zio Pro Fac Was Fac Low Low Dat Pro Fac Was Fac Ext Cet Arc Hub Fac Upp Upp War Pro Res Qua Res Tes Sec Acc Com Total Allies 82 | . . . . 3 . . 1 4 . 3 5 . . . . 5 19 3 . . . . 3 . 1 25 5 . . 2 . . . . . 1 . . . 2 . Largest Group 19 | . . . . 3 3 3 1 3 1 2 1 . . . . 4 19 17 . . . . 2 . 1 16 13 10 9 1 . . . . . 1 . . . 1 . Highest-Rated Group 702 | . . . . 40 40 40 10 120 20 62 26 . . . . 125 702 602 . . . . 52 . 26 613 627 627 591 10 . . . . . 45 . . . 45 . Highest-Rated Ally 159 | . . . . 16 16 16 10 40 20 31 26 . . . . 32 50 46 . . . . 26 . 26 159 153 96 96 10 . . . . . 45 . . . 45 . Total Orders 44 | . . . . . 2 . . . . 6 5 . . . . 1 . . . . . . 17 . . . 2 . 8 . . . . . . . . . . 3 . STAY 26 | . . . . . 1 . . . . 4 3 . . . . 1 . . . . . . 8 . . . 1 . 6 . . . . . . . . . . 2 . ROAM 2 | . . . . . . . . . . 1 . . . . . . . . . . . . 1 . . . . . . . . . . . . . . . . . . FOLLOW 16 | . . . . . 1 . . . . 1 2 . . . . . . . . . . . 8 . . . 1 . 2 . . . . . . . . . . 1 . Ally Attacks 578 | . . . . . . 8 . 19 1 33 23 . . . . 23 . 154 . . . . . . . 132 63 58 64 . . . . . . . . . . . . Total Damage 13285 | . . . . . . 40 . 508 42 383 1127 . . . . 739 . 2629 . . . . . . . 2903 1303 1982 1629 . . . . . . . . . . . . Kills 103 | . . . . . . . . 11 . 4 10 . . . . 5 . 26 . . . . . . . 23 10 5 9 . . . . . . . . . . . . Allies Corrupted 2 | . . . . . . . . . . . . . . . . . . . . . . . . . . . . . 2 . . . . . . . . . . . . Allies Melted 1 | . . . . . . . . . . . . . . . . . . . . . . . . . . . . . . . . . 1 . . . . . . . . Turrets Deployed 1 | . . . . . . . . . . . 1 . . . . . . . . . . . . . . . . . . . . . . . . . . . . . . Intel | -11 -10 -10 -9 -9 -9 -8 -8 -8 -8 -8 -7 -7 -7 -7 -6 -6 -6 -6 -6 -6 -6 -5 -5 -5 -5 -5 -5 -5 -5 -4 -4 -4 -4 -3 -3 -3 -2 -2 -2 -1 -1 ------- Run | Jun Mat Min Mat Min Exi Min Mat Gar Mat Sto Fac Low Low Zio Pro Fac Was Fac Low Low Dat Pro Fac Was Fac Ext Cet Arc Hub Fac Upp Upp War Pro Res Qua Res Tes Sec Acc Com Robot Analysis Total 12 | . 2 . 1 . . . . . . . 2 . . . . . . . . . . . 1 . . 2 . . . . . . . . . . . . . 3 1 Derelict Logs Recovered 18 | . . 2 . 2 . . . . . . . 2 3 1 2 . . . 1 1 . 1 . . . . . . . . . 3 . . . . . . . . . Drone Launches 1 | . . . . . . . . . . . . . . . . . . . . . . . . . . . . . 1 . . . . . . . . . . . . Drone Recoveries . | . . . . . . . . . . . . . . . . . . . . . . . . . . . . . . . . . . . . . . . . . . Exploration | -11 -10 -10 -9 -9 -9 -8 -8 -8 -8 -8 -7 -7 -7 -7 -6 -6 -6 -6 -6 -6 -6 -5 -5 -5 -5 -5 -5 -5 -5 -4 -4 -4 -4 -3 -3 -3 -2 -2 -2 -1 -1 ------------- Run | Jun Mat Min Mat Min Exi Min Mat Gar Mat Sto Fac Low Low Zio Pro Fac Was Fac Low Low Dat Pro Fac Was Fac Ext Cet Arc Hub Fac Upp Upp War Pro Res Qua Res Tes Sec Acc Com Turns Passed 40888 | 110 2041 2207 1266 1693 2574 106 2084 2394 792 2307 2785 479 313 384 389 459 237 1198 381 273 143 254 1547 27 634 652 209 1317 676 1026 221 82 980 189 992 910 703 1133 1045 2677 999 Spaces Moved 47210 | 54 784 677 407 676 945 27 723 867 280 685 6404 1173 896 1179 971 871 409 2624 846 975 195 869 3226 94 1102 874 142 122 1084 2589 794 402 1183 329 1454 1327 1170 1399 1280 3627 1475 Core 17 | 6 . . . . 11 . . . . . . . . . . . . . . . . . . . . . . . . . . . . . . . . . . . . Treads 6114 | 48 784 677 407 676 934 27 723 867 280 685 6 . . . . . . . . . . . . . . . . . . . . . . . . . . . . . . Legs . | . . . . . . . . . . . . . . . . . . . . . . . . . . . . . . . . . . . . . . . . . . Wheels . | . . . . . . . . . . . . . . . . . . . . . . . . . . . . . . . . . . . . . . . . . . Hover 11978 | . . . . . . . . . . . . . . . . . . . . . . . . . . . . . . . . . . 246 1454 1327 1170 1399 1280 3627 1475 Flight 29101 | . . . . . . . . . . . 6398 1173 896 1179 971 871 409 2624 846 975 195 869 3226 94 1102 874 142 122 1084 2589 794 402 1183 83 . . . . . . . Fastest Speed 5 | 50 160 240 240 240 160 240 240 240 240 240 26 14 14 26 14 20 24 5 11 23 5 5 5 23 23 20 23 23 20 5 7 17 17 18 34 35 32 32 48 36 43 Average Speed 58 | 147 220 309 240 240 242 240 240 240 240 246 26 25 25 26 25 23 25 23 24 23 25 22 23 23 23 24 23 23 22 24 16 17 18 36 43 47 42 48 49 44 43 Slowest Speed 1600 | 160 240 320 240 240 1600 240 320 240 320 250 250 91 26 91 26 27 92 88 88 23 88 23 29 23 23 89 89 23 23 92 17 17 81 42 111 118 43 56 54 122 120 Overloaded Moves 334 | . . . . . . . . . . . . 8 36 . 6 36 . 14 10 . 11 18 20 . . 25 . . 18 22 6 . . 13 6 7 30 4 . 44 . Propulsion Burnouts . | . . . . . . . . . . . . . . . . . . . . . . . . . . . . . . . . . . . . . . . . . . Robots Hopped 61 | . . . . . . . . . . . 15 4 . . . 2 . 10 . . . . 6 . 4 1 . . 8 8 1 . 2 . . . . . . . . Cave-ins Triggered . | . . . . . . . . . . . . . . . . . . . . . . . . . . . . . . . . . . . . . . . . . . Teleports 5 | . . . . . . . . . . . . . . . . . . . . . . . . . . . . . . . . . . . . 2 . 1 2 . . Exploration Rate (%) 69 | 3 99 99 48 99 88 6 67 79 28 94 95 96 91 89 94 21 95 64 70 89 80 84 68 89 32 94 57 73 58 48 78 64 93 45 32 87 38 86 79 63 41 Regions Visited 41 Branch Regions 25 Pre-discovered Areas 15 | . 1 . 2 . 1 . 1 . . 1 . 2 1 1 . . . . 1 1 1 . . . . . . . . . . 2 . . . . . . . . . Known Exits Taken 30 | . . . 1 . 1 . 1 . 1 . 1 1 1 1 1 . . 1 1 1 1 1 . . 1 1 1 1 1 1 1 1 1 1 1 1 1 1 1 1 . Unknown Exits Taken 6 | 1 1 1 . 1 . 1 . . . 1 . . . . . . . . . . . . . . . . . . . . . . . . . . . . . . . Scrap Searched 36 | . . 1 . 2 . 1 . . . . . 9 2 2 1 . . . 12 2 . 1 . . . . . . . . 2 1 . . . . . . . . . Spaces Dug 648 | . 1 6 8 8 7 . 1 19 13 3 74 20 29 . 3 6 2 29 117 9 3 1 59 1 18 1 . . 8 31 8 1 22 6 26 6 3 19 12 61 7 Terrain Destroyed 1394 | . 3 13 35 58 13 . 27 20 22 23 97 20 31 . 28 39 192 60 125 9 3 1 92 1 18 89 1 . 9 31 35 1 22 6 106 27 4 19 13 94 7 Melee 436 | . 1 . . . . . 1 19 1 3 67 20 10 . 3 5 1 28 19 7 3 1 45 1 16 1 . . 7 30 5 1 21 4 24 6 3 13 9 54 7 Projectile 147 | . . . . . . . . 1 1 . 9 . 3 . . 3 1 1 28 2 . . 17 . 2 1 1 . 2 1 12 . 1 2 28 9 1 6 4 11 . AOE 809 | . 2 13 35 58 13 . 25 . 20 20 20 . 18 . 25 31 190 31 78 . . . 30 . . 87 . . . . 18 . . . 54 12 . . . 29 . Terrain Rammed . | . . . . . . . . . . . . . . . . . . . . . . . . . . . . . . . . . . . . . . . . . . Walls Destroyed . | . . . . . . . . . . . . . . . . . . . . . . . . . . . . . . . . . . . . . . . . . . Machines Disabled . | . . . . . . . . . . . . . . . . . . . . . . . . . . . . . . . . . . . . . . . . . . Actions | -11 -10 -10 -9 -9 -9 -8 -8 -8 -8 -8 -7 -7 -7 -7 -6 -6 -6 -6 -6 -6 -6 -5 -5 -5 -5 -5 -5 -5 -5 -4 -4 -4 -4 -3 -3 -3 -2 -2 -2 -1 -1 --------- Run | Jun Mat Min Mat Min Exi Min Mat Gar Mat Sto Fac Low Low Zio Pro Fac Was Fac Low Low Dat Pro Fac Was Fac Ext Cet Arc Hub Fac Upp Upp War Pro Res Qua Res Tes Sec Acc Com Total 57930 | 71 966 739 570 719 1146 51 984 1049 345 1147 7268 1303 952 1248 1095 1078 498 3110 964 1011 257 921 3890 97 1438 1284 305 1397 1461 2913 845 408 1914 388 1658 1530 1293 1745 1568 4502 1802 Wait 6533 | . 59 9 15 7 48 16 122 29 11 214 448 89 11 38 98 126 52 282 42 19 20 44 446 . 242 313 142 1249 309 201 13 1 661 11 26 106 55 230 142 490 97 Move 47051 | 54 783 676 406 675 944 26 722 865 279 684 6374 1164 895 1178 970 867 408 2603 845 974 194 868 3214 93 1093 871 141 121 1067 2572 791 401 1179 328 1453 1326 1169 1398 1279 3626 1475 Hop 59 | . . . . . . . . . . . 14 4 . . . 2 . 10 . . . . 6 . 4 1 . . 8 8 1 . 1 . . . . . . . . Pick Up 346 | 5 23 11 22 6 35 . 16 9 5 30 23 . 8 1 3 4 3 9 1 . 4 . 11 1 4 . 1 1 2 9 1 . 10 8 13 12 7 7 13 20 8 Fast Attach 205 | 6 1 . 2 . 5 . 11 7 4 5 10 2 4 . . 2 . 16 1 . . . 7 1 3 . 2 4 4 14 2 . 7 5 10 11 5 10 16 21 7 Attach 186 | 1 1 1 7 2 9 . 15 11 2 7 36 . . . . 4 . 6 4 2 2 1 13 . 1 . . . . 2 1 . 3 2 6 7 2 5 14 4 15 Detach 110 | . . . 3 . 2 . 5 9 3 1 30 . . . . 2 . 6 4 2 1 1 8 . . . . 1 . 3 . . 2 2 3 . 1 1 8 5 7 Swap 617 | . 18 10 18 2 8 . 10 6 8 39 63 3 6 15 12 19 7 30 9 4 4 2 47 . 13 13 6 2 17 23 5 . 10 13 21 11 5 23 21 77 17 Drop 409 | . 10 6 23 6 19 . 23 12 4 41 42 2 5 2 3 3 3 30 2 . 2 1 12 1 4 . 4 5 6 19 1 . 13 13 13 8 8 15 13 24 11 Fire 757 | 5 62 22 65 16 37 9 47 36 28 105 73 . 6 . 1 13 17 5 30 2 . . 25 . 2 6 2 . 7 1 22 . 1 2 42 15 1 8 11 16 17 Melee 1389 | . 2 . . . 38 . 2 44 1 16 125 39 17 14 7 32 8 80 26 8 30 4 95 1 31 25 7 14 27 50 8 6 27 4 71 34 40 48 51 209 148 Ram . | . . . . . . . . . . . . . . . . . . . . . . . . . . . . . . . . . . . . . . . . . . Kick . | . . . . . . . . . . . . . . . . . . . . . . . . . . . . . . . . . . . . . . . . . . Crush 42 | . 7 4 9 5 . . 11 1 . 5 . . . . . . . . . . . . . . . . . . . . . . . . . . . . . . . Escape Stasis 67 | . . . . . . . . 6 . . . . . . . . . 26 . . . . . . . 18 . . . 7 . . . . . . . . . 10 . Rewire 15 | . . . . . 1 . . 14 . . . . . . . . . . . . . . . . . . . . . . . . . . . . . . . . . Trap 144 | . . . . . . . . . . . 30 . . . 1 4 . 7 . . . . 6 . 41 37 . . 14 4 . . . . . . . . . . . Miscellaneous . | . . . . . . . . . . . . . . . . . . . . . . . . . . . . . . . . . . . . . . . . . . Route ------- -11/Junkyard -10/Materials (discovered 5 exits: *Mat x3 / [*Min x2]) -10/Mines (discovered 2 exits: *Mat x2) -9/Materials (discovered 2 exits: *Mat / *Min) -9/Mines (discovered 4 exits: *Mat x2 / *Exi / *Zio) -9/Exiles (discovered 2 exits: *Min x2) -8/Mines -8/Materials (discovered 4 exits: *Fac x2 / *Sto / Gar) -8/Garrison (discovered 3 exits: *Mat x3) -8/Materials (discovered 2 exits: *Sto x2) -8/Storage -7/Factory (discovered 5 exits: *Fac x3 / *Low x2) -7/Lower Caves -7/Lower Caves (discovered 2 exits: *Fac / *Zio) -7/Zion -6/Proximity Caves -6/Factory (discovered 5 exits: *Fac x3 / Low x2) -6/Waste -6/Factory (discovered 5 exits: *Fac x3 / *Low x2) -6/Lower Caves -6/Lower Caves (discovered 2 exits: *Fac / *Dat) -6/Data Miner -5/Proximity Caves -5/Factory (discovered 6 exits: *Fac x2 / *Upp x2 / Ext x2) -5/Waste -5/Factory (discovered 5 exits: Fac / Upp x2 / *Ext x2) -5/Extension (discovered 2 exits: *Fac / *Cet) -5/Cetus -5/Archives (discovered 2 exits: *Fac / *Hub) -5/Hub_04(d) (discovered 4 exits: *Fac x4) -4/Factory (discovered 5 exits: *Res x2 / *Upp x2 / Arm) -4/Upper Caves -4/Upper Caves (discovered 2 exits: *Res / *War) -4/Warlord -3/Proximity Caves -3/Research (discovered 2 exits: *Qua x2) -3/Quarantine -2/Research (discovered 2 exits: *Acc / *Tes) -2/Testing (discovered 2 exits: *Acc / *Sec) -2/Section 7 -1/Access -1/Command Free Derelict Territories History --------- Turn | Location | Event 34 | -11/Junkyard | Discovered new exit (range 15) 111 | -11/Junkyard | Entered Materials 129 | -10/Materials | Discovered new exit (range 16) 304 | -10/Materials | Build established: Mutant 465 | -10/Materials | Discovered new exit (range 3) 1027 | -10/Materials | Repaired Lgt. Treads 1180 | -10/Materials | Discovered new exit (range 5) 1299 | -10/Materials | Central database locked down 1330 | -10/Materials | Discovered new exit (range 7) 1538 | -10/Materials | Discovered new exit (range 14) 2152 | -10/Materials | Entered Mines 2199 | -10/Mines | Met a Derelict bent on vengeance 2257 | -10/Mines | Destroyed YI-UF0 2338 | -10/Mines | Discovered new exit (range 15) 2367 | -10/Mines | Joined a pair of Derelicts in attacking an 0b10 outpost 3351 | -10/Mines | Learned Materials terminal intel 3397 | -10/Mines | Discovered new exit (range 14) 4359 | -10/Mines | Entered Materials 4359 | -9/Materials | Evolved 2 slots: Propulsion x1, Utility x1 4360 | -9/Materials | Identified exit to Mines 4361 | -9/Materials | Loaded intel: 12 terminal locations 4624 | -9/Materials | Destroyed 7 combat bots 4679 | -9/Materials | Repaired Lgt. Treads? 4876 | -9/Materials | Build established: Scavenger-Mutant 5321 | -9/Materials | Discovered new exit (range 15) 5625 | -9/Materials | Entered Mines 5673 | -9/Mines | Discovered new exit (range 7) 5734 | -9/Mines | Build established: Mutant 5922 | -9/Mines | Learned 4 Materials zone layouts 5925 | -9/Mines | Learned Materials security intel 5969 | -9/Mines | A Derelict revealed a hidden shortcut to a safe place 6014 | -9/Mines | Deemed a non-threat by the Exiles lab entrance 6014 | -9/Mines | Discovered new exit (range 5) 6664 | -9/Mines | Discovered new exit (range 11) 6666 | -9/Mines | A weapon hastily lodged in a ceiling crevice suddenly fell to the ground 6680 | -9/Mines | Received a Rocket Launcher from a helpful Derelict 7006 | -9/Mines | Assisted by bots powering up and referring to "LRC-V3" 7318 | -9/Mines | Entered Exiles 7318 | -9/Exiles | Accompanied by 3 allies 7319 | -9/Exiles | Identified exit to Mines 7377 | -9/Exiles | Met 8R-AWN 7418 | -9/Exiles | Met EX-HEX 7511 | -9/Exiles | Met EX-DEC 7523 | -9/Exiles | Learned location of Zion (-7) 7593 | -9/Exiles | Discovered exit to Mines (range 14) 8340 | -9/Exiles | Met EX-BIN 8372 | -9/Exiles | Aligned with FarCom system 8375 | -9/Exiles | Given EX-Vault access code 8432 | -9/Exiles | Opened EX-Vault 8449 | -9/Exiles | Found Longsword +1 8453 | -9/Exiles | Found XL Autogun Array 8461 | -9/Exiles | Found Skeleton Box 8510 | -9/Exiles | Warned to stay clear of 0b10 Research branches 8633 | -9/Exiles | Attacked by the Exiles 8781 | -9/Exiles | Core integrity fell below 50% 8796 | -9/Exiles | Destroyed 8R-AWN 8811 | -9/Exiles | Lost 5 parts (1p3n1u) 9061 | -9/Exiles | Core integrity fell below 20% 9093 | -9/Exiles | Lost 3 parts (1n2u) 9206 | -9/Exiles | Destroyed EX-HEX 9235 | -9/Exiles | Destroyed EX-DEC 9244 | -9/Exiles | Destroyed EX-BIN 9278 | -9/Exiles | Found Exp. Core Analyzer 9353 | -9/Exiles | Found AWS/EX-DEC 9403 | -9/Exiles | Found Deploy-a-Sentry 9892 | -9/Exiles | Stole four prototypes: Skeleton Box, XL Autogun Array, Longsword +1, Deploy-a-Sentry 9892 | -9/Exiles | Entered Mines 9892 | -8/Mines | Accompanied by 3 allies 9928 | -8/Mines | Discovered new exit (range 9) 9958 | -8/Mines | ME-RLN came to Exiles' defense 9998 | -8/Mines | Entered Materials 9998 | -8/Materials | Evolved 2 slots: Utility x2 9999 | -8/Materials | Discovered new exit (range 14) 10016 | -8/Materials | Identified exit to Storage 10558 | -8/Materials | Repaired Lgt. Treads 10726 | -8/Materials | Build established: Scavenger-Mutant 10840 | -8/Materials | Repaired Hrd. Light Armor Plating 11267 | -8/Materials | Discovered new exit (range 5) 11713 | -8/Materials | Discovered new exit (range 16) 11974 | -8/Materials | Identified exit to Garrison 12082 | -8/Materials | Entered Garrison 12120 | -8/Garrison | Triggered checkpoint 12137 | -8/Garrison | Garrison Relay disabled 12312 | -8/Garrison | Triggered checkpoint 12437 | -8/Garrison | Discovered new exit (range 8) 12482 | -8/Garrison | Triggered checkpoint 12500 | -8/Garrison | Triggered checkpoint 12871 | -8/Garrison | Triggered checkpoint 12918 | -8/Garrison | Triggered checkpoint 12972 | -8/Garrison | Triggered checkpoint 13108 | -8/Garrison | Garrison Relay disabled 13154 | -8/Garrison | Discovered new exit (range 15) 13446 | -8/Garrison | Triggered checkpoint 13596 | -8/Garrison | Discovered new exit (range 3) 13755 | -8/Garrison | Build established: Mutant 14177 | -8/Garrison | Build established: Scavenger-Mutant 14278 | -8/Garrison | Rescued a captive Derelict 14304 | -8/Garrison | Attempted to access garrison exit controls, blocked by remote lockdown 14476 | -8/Garrison | Entered Materials 14476 | -8/Materials | Accompanied by 1 ally 14810 | -8/Materials | Garrison activated, responded to threat 14972 | -8/Materials | Build established: Hacker-Mutant 15268 | -8/Materials | Entered Storage 15312 | -8/Storage | Core integrity fell below 50% 15438 | -8/Storage | Met a pair of Derelict thieves 15634 | -8/Storage | Garrison activated, responded to threat 15646 | -8/Storage | Build established: Scavenger-Mutant 16194 | -8/Storage | Discovered new exit (range 16) 16459 | -8/Storage | Build established: Hacker-Mutant 16773 | -8/Storage | Repaired Mni. Grenade Launcher 17287 | -8/Storage | Remotely autohacked Sealed Heavy Doors 17297 | -8/Storage | Found Prototype Launcher 17311 | -8/Storage | Identified Scatter Rocket Array 17575 | -8/Storage | Entered Factory 17575 | -7/Factory | Evolved 2 slots: Propulsion x1, Utility x1 17618 | -7/Factory | DAS Turret deployed 17638 | -7/Factory | Identified exit to Lower Caves 17744 | -7/Factory | Repaired Imp. Light Armor Plating 17889 | -7/Factory | Fabricated Cld. VTOL Module? 17890 | -7/Factory | Build established: Hacker-Sprinter 18134 | -7/Factory | Fabricated O-24 Administrator (x1) 18562 | -7/Factory | Repaired Imp. VTOL Module 18646 | -7/Factory | Fabricated Cld. VTOL Module (x1) 18678 | -7/Factory | Fabricated Cld. VTOL Module (x1) 18914 | -7/Factory | Discovered new exit (range 11) 18926 | -7/Factory | Identified exit to Factory 19175 | -7/Factory | Search patrols dispatched 19196 | -7/Factory | Discovered exit to Factory (range 5) 19269 | -7/Factory | Fabricated Cld. VTOL Module (x1) 19619 | -7/Factory | Discovered exit to Factory (range 7) 20019 | -7/Factory | Search patrols dispatched 20360 | -7/Factory | Entered Lower Caves 20409 | -7/Lower Caves | Met a Warlord Commander 20410 | -7/Lower Caves | Learned location of Warlord (-4) 20495 | -7/Lower Caves | Build established: Hacker-Scout 20580 | -7/Lower Caves | Encountered a Warlord checkpoint 20589 | -7/Lower Caves | Discovered new exit (range 16) 20593 | -7/Lower Caves | Identified exit to Lower Caves 20607 | -7/Lower Caves | Learned location of 1 exit from Factory 20839 | -7/Lower Caves | Entered another Lower Caves area 20839 | -7/Lower Caves | Spotted MB-L0S(f) 20839 | -7/Lower Caves | Spotted MV-9BS(f) 20840 | -7/Lower Caves | Encountered a Master Thief 20840 | -7/Lower Caves | Encountered a Master Thief 20848 | -7/Lower Caves | Cld. VTOL Module stolen by Master Thief 20850 | -7/Lower Caves | Destroyed MB-L0S(f) 20851 | -7/Lower Caves | Adv. Component Analysis Suite stolen by Master Thief 20852 | -7/Lower Caves | Destroyed MV-9BS(f) 20872 | -7/Lower Caves | Found Prototype Device 20872 | -7/Lower Caves | Identified Heart of Steel 20891 | -7/Lower Caves | Learned Factory terminal intel 20907 | -7/Lower Caves | Spotted B-75 Beast 20917 | -7/Lower Caves | Discovered exit to Factory (range 11) 20918 | -7/Lower Caves | Learned 4 Factory zone layouts 21080 | -7/Lower Caves | Attracted the attention of an 0b10 checkpoint 21116 | -7/Lower Caves | Discovered new exit (range 10) 21149 | -7/Lower Caves | Identified exit to Zion 21152 | -7/Lower Caves | Entered Zion 21167 | -7/Zion | Discovered new exit (range 12) 21170 | -7/Zion | Identified exit to Proximity Caves 21228 | -7/Zion | Found Prototype Launcher 21248 | -7/Zion | Identified Rocket Array 21273 | -7/Zion | Acquired unknown access codes intercepted by a Zionite 21311 | -7/Zion | Learned Factory non-interactive machine intel 21344 | -7/Zion | Given A8's code to call for help 21385 | -7/Zion | Visited the Megawrench Repair Shop 21385 | -7/Zion | Megawrench repaired 10 parts 21536 | -7/Zion | Entered Proximity Caves 21653 | -6/Proximity Caves | Learned location of 1 exit from Factory 21671 | -6/Proximity Caves | Encountered a Derelict sapper outpost 21742 | -6/Proximity Caves | Learned Factory emergency access door positions 21893 | -6/Proximity Caves | Discovered exit to Factory (range 7) 21925 | -6/Proximity Caves | Entered Factory 21925 | -6/Factory | Evolved 2 slots: Propulsion x1, Utility x1 21926 | -6/Factory | Identified exit to Factory 21929 | -6/Factory | Loaded intel: 219 non-interactive machine locations 21930 | -6/Factory | Loaded intel: 26 terminal locations 22102 | -6/Factory | Identified exit to Lower Caves 22165 | -6/Factory | Discovered exit to Factory (range 5) 22384 | -6/Factory | Sucked down chute 22384 | -6/Factory | Entered Waste 22386 | -6/Waste | Spotted C-40 Crusher 22422 | -6/Waste | Spotted C-40 Crusher 22422 | -6/Waste | Spotted C-40 Crusher 22424 | -6/Waste | Spotted C-40 Crusher 22441 | -6/Waste | Destroyed C-40 Crusher 22450 | -6/Waste | Destroyed C-40 Crusher 22461 | -6/Waste | Destroyed C-40 Crusher 22471 | -6/Waste | Spotted C-40 Crusher 22471 | -6/Waste | Spotted C-40 Crusher 22478 | -6/Waste | Destroyed C-40 Crusher 22478 | -6/Waste | Destroyed C-40 Crusher 22487 | -6/Waste | Destroyed C-40 Crusher 22506 | -6/Waste | Discovered new exit (range 13) 22538 | -6/Waste | Warlord forces began an assault 22601 | -6/Waste | Identified exit to Factory 22621 | -6/Waste | Entered Factory 22621 | -6/Factory | Accompanied by 17 allies 22985 | -6/Factory | Allied Derelicts emerged from ambush trap array 23117 | -6/Factory | Repaired Lrn. Sensor Array 23140 | -6/Factory | Discovered exit to Factory (range 16) 23175 | -6/Factory | Garrison activated, responded to threat 23288 | -6/Factory | Discovered exit to Factory (range 10) 23494 | -6/Factory | Fabricated Adv. Hacking Suite? 23526 | -6/Factory | Fabricated Adv. Hacking Suite? 23546 | -6/Factory | Discovered exit to Factory (range 15) 23745 | -6/Factory | Cargo convoy interrupted 23806 | -6/Factory | Repaired Lrn. Sensor Array 23819 | -6/Factory | Entered Lower Caves 23865 | -6/Lower Caves | Encountered a Warlord checkpoint 24047 | -6/Lower Caves | Spotted B-75 Beast 24120 | -6/Lower Caves | Discovered new exit (range 12) 24195 | -6/Lower Caves | Identified exit to Lower Caves 24200 | -6/Lower Caves | Entered another Lower Caves area 24257 | -6/Lower Caves | Discovered exit to Factory (range 10) 24365 | -6/Lower Caves | Encountered a Warlord checkpoint 24413 | -6/Lower Caves | Learned Factory stockpile data 24422 | -6/Lower Caves | Learned Armory security intel 24422 | -6/Lower Caves | Learned Extension stockpile data 24422 | -6/Lower Caves | Learned Extension emergency access door positions 24422 | -6/Lower Caves | Learned Armory trap positions 24422 | -6/Lower Caves | Learned location of Extension (-5) 24440 | -6/Lower Caves | Discovered new exit (range 16) 24443 | -6/Lower Caves | Identified exit to Data Miner 24473 | -6/Lower Caves | Entered Data Miner 24473 | -6/Data Miner | Discovered new exit (range 6) 24475 | -6/Data Miner | Identified exit to Proximity Caves 24478 | -6/Data Miner | Met Data Miner 24483 | -6/Data Miner | Learned location of Section 7 (-2) 24483 | -6/Data Miner | Acquired the access code to Warlord's prototype stash 24487 | -6/Data Miner | Received God Mode back door access code from Data Miner 24514 | -6/Data Miner | Destroyed Data Miner 24516 | -6/Data Miner | Found Prototype Hackware 24517 | -6/Data Miner | Found Prototype Hackware 24519 | -6/Data Miner | Data Conduit disabled 24549 | -6/Data Miner | Identified Ghost Barrier 24550 | -6/Data Miner | Identified Quantum Router 24616 | -6/Data Miner | Entered Proximity Caves 24645 | -5/Proximity Caves | Spotted B-75 Beast 24663 | -5/Proximity Caves | Learned Factory terminal intel 24812 | -5/Proximity Caves | Discovered exit to Factory (range 14) 24856 | -5/Proximity Caves | Learned Armory terminal intel 24860 | -5/Proximity Caves | Attracted the attention of an 0b10 base 24870 | -5/Proximity Caves | Entered Factory 24870 | -5/Factory | Evolved 2 slots: Utility x2 24872 | -5/Factory | Loaded intel: 27 terminal locations 25034 | -5/Factory | Spotted B-75 Beast 25060 | -5/Factory | Identified exit to Upper Caves 25060 | -5/Factory | Identified exit to Extension 25204 | -5/Factory | Build established: Wizard-Scout 25258 | -5/Factory | Fabricated Cld. Nuclear Pulse Thruster (x1) 25297 | -5/Factory | Fabricated Enh. Force Lance (x1) 25317 | -5/Factory | Repaired Cld. VTOL Module? 25416 | -5/Factory | Repaired Cld. VTOL Module 25492 | -5/Factory | Discovered new exit (range 16) 25959 | -5/Factory | Repaired Imp. Light Armor Plating 26027 | -5/Factory | Discovered new exit (range 15) 26058 | -5/Factory | Identified exit to Factory 26136 | -5/Factory | Fabricated Exp. Signal Interpreter (x1) 26156 | -5/Factory | Lost 4 parts (1p1n2u) 26417 | -5/Factory | Sucked down chute 26417 | -5/Factory | Entered Waste 26428 | -5/Waste | Spotted C-40 Crusher 26430 | -5/Waste | Spotted C-40 Crusher 26431 | -5/Waste | Spotted C-40 Crusher 26432 | -5/Waste | EMP discharged 26437 | -5/Waste | Spotted C-40 Crusher 26437 | -5/Waste | Discovered new exit (range 16) 26439 | -5/Waste | Spotted C-40 Crusher 26439 | -5/Waste | Spotted C-40 Crusher 26444 | -5/Waste | Identified exit to Factory 26444 | -5/Waste | Entered Factory 26649 | -5/Factory | Fabricated Cld. Nuclear Pulse Thruster? 26851 | -5/Factory | Repaired Broken Mic. Antimatter Reactor 27031 | -5/Factory | Discovered exit to Factory (range 7) 27032 | -5/Factory | Spotted B-75 Beast 27033 | -5/Factory | Cargo convoy interrupted 27078 | -5/Factory | Entered Extension 27112 | -5/Extension | Rescued a captive Derelict 27112 | -5/Extension | Rescued a captive Derelict 27157 | -5/Extension | Rescued a captive Derelict 27166 | -5/Extension | Rescued A7 27173 | -5/Extension | Rescued a captive Derelict 27224 | -5/Extension | Rescued a captive Derelict 27224 | -5/Extension | Rescued a captive Derelict 27228 | -5/Extension | Rescued a captive Derelict 27230 | -5/Extension | Rescued a captive Derelict 27252 | -5/Extension | Rescued a captive Derelict 27253 | -5/Extension | Rescued a captive Derelict 27277 | -5/Extension | Rescued a captive Derelict 27440 | -5/Extension | Spotted B-75 Beast 27453 | -5/Extension | Allies destroyed B-75 Beast 27468 | -5/Extension | Spotted B-75 Beast 27469 | -5/Extension | Allies destroyed B-75 Beast 27482 | -5/Extension | P-70 Sage assimilated allied 1Q-IWB(g) 27551 | -5/Extension | Central database locked down 27628 | -5/Extension | Rescued a captive Derelict 27629 | -5/Extension | Rescued a captive Derelict 27637 | -5/Extension | Discovered exit to Factory (range 10) 27637 | -5/Extension | Discovered new exit (range 6) 27639 | -5/Extension | Identified exit to Cetus 27730 | -5/Extension | Entered Cetus 27730 | -5/Cetus | Accompanied by 13 allies (A7) 27735 | -5/Cetus | Acquired a Cetus Manufacturing Module code from A7 27743 | -5/Cetus | Spotted Cetus Guard 27743 | -5/Cetus | Spotted Cetus Guard 27744 | -5/Cetus | Allies destroyed Cetus Guard 27745 | -5/Cetus | Spotted Cetus Guard 27745 | -5/Cetus | Spotted Cetus Guard 27758 | -5/Cetus | Allies destroyed Cetus Guard 27760 | -5/Cetus | Allies destroyed Cetus Guard 27773 | -5/Cetus | Started Cetus Manufacturing Module 27787 | -5/Cetus | Escorted A7 to Cetus Mainframe 27798 | -5/Cetus | Manufactured an Enhanced Grunt 27811 | -5/Cetus | Discovered new exit (range 16) 27823 | -5/Cetus | Manufactured an Enhanced Grunt 27826 | -5/Cetus | Identified exit to Archives 27848 | -5/Cetus | Manufactured an Enhanced Grunt 27854 | -5/Cetus | Destroyed A7 27858 | -5/Cetus | Extracted ID and sensor layout for unrecognized location from A7's data core 27873 | -5/Cetus | Manufactured an Enhanced Grunt 27898 | -5/Cetus | Manufactured an Enhanced Grunt 27939 | -5/Cetus | Entered Archives 27939 | -5/Archives | Accompanied by 10 allies 27972 | -5/Archives | Discovered new exit (range 13) 28054 | -5/Archives | Discovered exit to Factory (range 14) 29237 | -5/Archives | Identified exit to Hub_04(d) 29256 | -5/Archives | Entered Hub_04(d) 29256 | -5/Hub_04(d) | Accompanied by 9 allies 29556 | -5/Hub_04(d) | First assault squad dispatched 29762 | -5/Hub_04(d) | Network Hub disabled 29823 | -5/Hub_04(d) | Found Prototype Device 29823 | -5/Hub_04(d) | Identified Exp. Phase Shifter 29888 | -5/Hub_04(d) | Found Prototype Device 29888 | -5/Hub_04(d) | Identified Exp. EM Disruption Field 29894 | -5/Hub_04(d) | Network Hub disabled 29929 | -5/Hub_04(d) | Network Hub disabled 29932 | -5/Hub_04(d) | Entered Factory 29932 | -4/Factory | Evolved 2 slots: Utility x2 29933 | -4/Factory | Identified exit to Research 30206 | -4/Factory | Identified exit to Upper Caves 30206 | -4/Factory | Identified exit to Armory 30327 | -4/Factory | Repaired Neutron Missile Launcher? 30433 | -4/Factory | Discovered exit to Research (range 4) 30512 | -4/Factory | Repaired Imp. Light Armor Plating 30519 | -4/Factory | Fabricated Adv. Cloaking Device (x1) 30603 | -4/Factory | Repaired Cld. Nuclear Pulse Thruster 30621 | -4/Factory | Found Exp. Signal Interpreter 30727 | -4/Factory | Fabricated Exp. Sensor Array (x1) 30817 | -4/Factory | Cargo convoy interrupted 30855 | -4/Factory | Found Prototype Launcher 30856 | -4/Factory | Identified Com. Tesla Bomb Launcher 30858 | -4/Factory | Found Prototype Launcher 30858 | -4/Factory | Identified Point Singularity Launcher 30958 | -4/Factory | Entered Upper Caves 31128 | -4/Upper Caves | Found Alien Artifact 31128 | -4/Upper Caves | Identified Core Expander 31128 | -4/Upper Caves | Installed Core Expander, added new Weapon slot 31173 | -4/Upper Caves | Attracted the attention of an 0b10 checkpoint 31178 | -4/Upper Caves | Discovered new exit (range 7) 31179 | -4/Upper Caves | Identified exit to Upper Caves 31179 | -4/Upper Caves | Entered another Upper Caves area 31194 | -4/Upper Caves | Discovered exit to Research (range 6) 31200 | -4/Upper Caves | Learned location of Quarantine (-3) 31258 | -4/Upper Caves | Discovered new exit (range 13) 31259 | -4/Upper Caves | Identified exit to Warlord 31261 | -4/Upper Caves | Entered Warlord 31267 | -4/Warlord | System corruption cleaned by Quarantine Array 31400 | -4/Warlord | Build established: Wizard-Sprinter 31401 | -4/Warlord | Warlord's base attacked by MAIN.C 31415 | -4/Warlord | Met Warlord 31417 | -4/Warlord | Opened Warlord's prototype stash 31425 | -4/Warlord | Found Prototype Processor 31437 | -4/Warlord | Identified Exp. Armor Integrity Analyzer 31447 | -4/Warlord | Found Prototype Piercing Weapon 31448 | -4/Warlord | Found Prototype Piercing Weapon 31630 | -4/Warlord | Spotted B-90 Cyclops 31735 | -4/Warlord | Spotted Executioner 31751 | -4/Warlord | Warlord forces counterattacked 31759 | -4/Warlord | Spotted Striker 31846 | -4/Warlord | Spotted Striker 31849 | -4/Warlord | Spotted Striker 31913 | -4/Warlord | Spotted Striker 31914 | -4/Warlord | Spotted Executioner 32076 | -4/Warlord | Warlord base infiltrated, sounded retreat 32099 | -4/Warlord | Spotted Striker 32127 | -4/Warlord | Spotted Striker 32159 | -4/Warlord | Spotted Executioner 32209 | -4/Warlord | Spotted B-90 Cyclops 32219 | -4/Warlord | Spotted Striker 32219 | -4/Warlord | Spotted B-86 Titan 32225 | -4/Warlord | Identified Vortex Lance (x2) 32236 | -4/Warlord | Discovered new exit (range 15) 32238 | -4/Warlord | Identified exit to Proximity Caves 32241 | -4/Warlord | Entered Proximity Caves 32251 | -3/Proximity Caves | Unaware initiated a cargo recovery operation 32261 | -3/Proximity Caves | Found Prototype Device 32261 | -3/Proximity Caves | Identified Thermal Barrier 32271 | -3/Proximity Caves | Found Prototype Launcher 32271 | -3/Proximity Caves | Identified Adv. Micro-nuke Launcher 32320 | -3/Proximity Caves | Found Exp. EM Disruption Field 32382 | -3/Proximity Caves | Spotted Striker 32424 | -3/Proximity Caves | Discovered exit to Research (range 15) 32430 | -3/Proximity Caves | Entered Research 32430 | -3/Research | Evolved 2 slots: Power x1, Propulsion x1 32446 | -3/Research | Identified exit to Quarantine 32486 | -3/Research | Fabricated Cmb. Antigrav System (x2) 32560 | -3/Research | Repaired Centrium Medium Armor Plating? 32920 | -3/Research | Repaired Cmb. Linear Gravjet 32922 | -3/Research | Fabricated Exp. Sensor Array (x1) 33072 | -3/Research | Repaired Cmb. Linear Gravjet? 33149 | -3/Research | Repaired Cmb. Linear Gravjet? 33180 | -3/Research | First assault squad dispatched 33422 | -3/Research | Entered Quarantine 33437 | -3/Quarantine | Found Alien Artifact 33441 | -3/Quarantine | Found Alien Artifact 33443 | -3/Quarantine | Build established: Hacker-Ninja 33570 | -3/Quarantine | Found Alien Artifact 33570 | -3/Quarantine | Identified Transdimensional Reconstructor (x2) 33570 | -3/Quarantine | Warped through subspace 33634 | -3/Quarantine | Repaired Exp. Sensor Array 33852 | -3/Quarantine | Repaired Cmb. Linear Gravjet? 33910 | -3/Quarantine | Repaired Centrium Medium Armor Plating? 33992 | -3/Quarantine | Build established: Hacker-Mutant 33995 | -3/Quarantine | Identified exit to Research 34051 | -3/Quarantine | Found Alien Artifact 34074 | -3/Quarantine | Found Alien Slashing Weapon 34074 | -3/Quarantine | Identified Sigix Broadsword 34165 | -3/Quarantine | Identified Hpw. Transdimensional Reconstructor 34165 | -3/Quarantine | Warped through subspace 34172 | -3/Quarantine | First assault squad dispatched 34265 | -3/Quarantine | Found Transdimensional Reconstructor 34283 | -3/Quarantine | Lost 3 parts (1p2u) 34283 | -3/Quarantine | Found Exp. Signal Interpreter 34285 | -3/Quarantine | Found Exp. Signal Interpreter 34294 | -3/Quarantine | Found Alien Artifact 34294 | -3/Quarantine | Identified Terrabomb 34294 | -3/Quarantine | Used Terrabomb 34308 | -3/Quarantine | Found Alien Artifact 34332 | -3/Quarantine | Entered Research 34332 | -2/Research | Warlord forces began assault on 0b10 34332 | -2/Research | Evolved 2 slots: Propulsion x1, Utility x1 34333 | -2/Research | Identified exit to Testing 34339 | -2/Research | Identified Core Reset Matrix 34339 | -2/Research | Identified Subatomic Replicator 34402 | -2/Research | Repaired Cmb. Antigrav System? 34442 | -2/Research | Research machine network offline 34561 | -2/Research | Met up with Warlord 34583 | -2/Research | Found Prototype Device 34584 | -2/Research | Identified Exp. Shock Absorption System 34587 | -2/Research | Borebot progress halted 34713 | -2/Research | Discovered new exit (range 13) 34724 | -2/Research | Identified exit to Access 34854 | -2/Research | Build established: Wizard-Gladiator 34912 | -2/Research | Borebot progress halted 34935 | -2/Research | Spotted Striker 34958 | -2/Research | Spotted Striker 34958 | -2/Research | Spotted Striker 34958 | -2/Research | Spotted Striker 34958 | -2/Research | Spotted Striker 34958 | -2/Research | Borebot progress halted 34985 | -2/Research | Spotted Striker 35001 | -2/Research | Found Prototype Slashing Weapon 35035 | -2/Research | Entered Testing 35126 | -2/Testing | Found Prototype Energy Cannon 35126 | -2/Testing | Identified Null Cannon 35285 | -2/Testing | Search patrols dispatched 35301 | -2/Testing | Found Prototype Energy Gun 35301 | -2/Testing | Identified Hyp. EM Gauss Rifle 35311 | -2/Testing | Identified Particle Cleaver 35385 | -2/Testing | Spotted PD-03BLMED2F6 35594 | -2/Testing | Found Med. Regenerative Plating 35606 | -2/Testing | Central database locked down 35608 | -2/Testing | Found Prototype Device 35622 | -2/Testing | Identified Exp. Force Field 35842 | -2/Testing | Warped through subspace 35881 | -2/Testing | Repaired Cmb. Antigrav System 35894 | -2/Testing | Discovered exit to Access (range 12) 36108 | -2/Testing | Spotted Fortress 36144 | -2/Testing | Discovered new exit (range 6) 36146 | -2/Testing | Identified exit to Section 7 36168 | -2/Testing | Entered Section 7 36267 | -2/Section 7 | Spotted S7 Guard 36334 | -2/Section 7 | Destroyed S7 Guard 36339 | -2/Section 7 | Found Alien Artifact 36342 | -2/Section 7 | Found Corrupted Prototype Protection 36354 | -2/Section 7 | Identified Integrated Thermoelectric Network 36372 | -2/Section 7 | Installed Integrated Thermoelectric Network, gained heat-energy exchange potential 36429 | -2/Section 7 | Spotted B-90 Cyclops 36435 | -2/Section 7 | Warped through subspace 36611 | -2/Section 7 | Repaired Cmb. Linear Gravjet? 36614 | -2/Section 7 | Build established: Hacker-Gladiator 36930 | -2/Section 7 | Repaired Cmb. Antigrav System? 36955 | -2/Section 7 | Found Alien Artifact 37002 | -2/Section 7 | Spotted Executioner 37003 | -2/Section 7 | Spotted Executioner 37007 | -2/Section 7 | Found Transdimensional Reconstructor 37008 | -2/Section 7 | Warped through subspace 37011 | -2/Section 7 | Found Transdimensional Reconstructor 37014 | -2/Section 7 | Spotted B-99 Colossus 37036 | -2/Section 7 | Found Alien Artifact 37037 | -2/Section 7 | Identified Integrated Reactor 37037 | -2/Section 7 | Installed Integrated Reactor, increased core energy generation (+10) 37039 | -2/Section 7 | Found Integrated Reactor 37039 | -2/Section 7 | Installed Integrated Reactor, increased core energy generation (+10) 37041 | -2/Section 7 | Found Integrated Reactor 37041 | -2/Section 7 | Installed Integrated Reactor, increased core energy generation (+10) 37059 | -2/Section 7 | Found Alien Artifact 37059 | -2/Section 7 | Identified LRC Matter Compressor 37059 | -2/Section 7 | Installed LRC Matter Compressor, increased matter storage capacity (+125) 37063 | -2/Section 7 | Found Alien Artifact 37063 | -2/Section 7 | Identified LRC Boosters 37063 | -2/Section 7 | Installed LRC Boosters, increased mass support (+10) 37065 | -2/Section 7 | Found Alien Artifact 37065 | -2/Section 7 | Identified LRC Armor 37065 | -2/Section 7 | Installed LRC Armor, increased core integrity (+250) 37078 | -2/Section 7 | Identified Integrity Redistributor 37078 | -2/Section 7 | Used Integrity Redistributor, redistributed integrity from core (-149) 37176 | -2/Section 7 | Spotted Alpha 7 37176 | -2/Section 7 | Spotted Alpha 7 37212 | -2/Section 7 | Identified Hvy. Regenerative Plating 37213 | -2/Section 7 | Entered Access 37213 | -1/Access | Evolved 2 slots: Power x1, Propulsion x1 37221 | -1/Access | Used Subatomic Replicator to replicate Longsword +1 37231 | -1/Access | Identified exit to Command 37407 | -1/Access | Spotted B-99 Colossus 37711 | -1/Access | Fabricated Femtoactuators? 37736 | -1/Access | Spotted B-99 Colossus 37770 | -1/Access | Fabricated Adv. Force Booster? 37960 | -1/Access | Fabricated Exp. Actuator Array? 38084 | -1/Access | Build established: Scavenger-Scout 38789 | -1/Access | Build established: Hacker-Mutant 38838 | -1/Access | Repaired Cmb. Antigrav System? 38883 | -1/Access | Repaired Cmb. Linear Gravjet 39104 | -1/Access | Spotted B-99 Colossus 39253 | -1/Access | First assault squad dispatched 39823 | -1/Access | Fabricated Exp. Utility Shielding (x1) 39890 | -1/Access | Entered Command 40138 | -1/Command | Repaired Lgt. Antimatter Reactor 40187 | -1/Command | First assault squad dispatched 40313 | -1/Command | Disengaged cave seal 40335 | -1/Command | Welcomed Warlord to Command 40520 | -1/Command | Spotted B-99 Colossus 40642 | -1/Command | High security lockdown imminent 40672 | -1/Command | Spotted M Guard 40672 | -1/Command | Spotted M Guard 40673 | -1/Command | Spotted Combat Programmer 40673 | -1/Command | Spotted Combat Programmer 40694 | -1/Command | Destroyed Combat Programmer 40722 | -1/Command | High security lockdown engaged 40747 | -1/Command | Destroyed M Guard 40747 | -1/Command | All MAIN.C guards destroyed 40749 | -1/Command | Lost 3 parts (2u1w) 40760 | -1/Command | Warlord commented on Warlord statues 40833 | -1/Command | Met MAIN.C 40834 | -1/Command | System corruption reached 10% 40851 | -1/Command | 0b10 Conduit disabled 40852 | -1/Command | Destroyed MAIN.C Shell 40853 | -1/Command | MAIN.C activated Command garrisons 40888 | -1/Command | Destroyed MAIN.C 40889 | *** | Establishing Free Derelict Territories! Last Messages --------------- 40882_ E-15 Imp destroyed. 40882_ Blast Slug penetrates Reinforced Barrier. 40883_ Destroyed Prototype Protection. 40883_ Longsword +1 follow-up attack on MAIN.C. 40883_ Imp. Focal Shield destroyed. 40883_ Knocked back. 40885_ System corrupted: Energy discharge (-22). 40885_ B-74 Champion suffers critical hit (Burn). 40885_ M-36 Artificer repairs G-73 Enforcer. 40887_ Imp. Core Shielding destroyed. 40887_ Knocked back. 40888_ M-36 Artificer repairs G-73 Enforcer. 40888_ Destroyed Prototype Ballistic Gun. 40888_ Longsword +1 follow-up attack on MAIN.C. 40888_ MAIN.C: "I hope you know you're still going to DIE HERE WITH ME!" 40888_ MAIN.C destroyed. Warlord: Victory! Sure there's still lots to do, but without MAIN.C at the helm 0b10 doesn't stand a chance. We've got this... Map ----- +----------------------------------------------------+ | ?????????????????????????????????????????????????? | | ?????????????????????????????????????????????????? | | ?????????????????????????????????????????????????? | | ?????????????????????????????????????????????????? | | ?????????????????????????????????????????????????? | | ?????????????????????????????????????????????????? | | ?????????????????????????????????????????????????? | | ?????????????????????????????????????????????????? | | ?????????????????????????????????????????????????? | | ?????????????????????????????????????????????????? | | ?????????????????????????????????????????????????? | | ?????????????????????????????????????????????????? | | ?????????????????????????????????????????????????? | | ?????????????????????????????????????????????????? | | ?????????????????????????????????????????????????? | | ?????????????????????????????????????????????????? | | ??????????????????##################?????????????? | | ?????????????????"""" """ % #?????????????? | | ?????????????????? " #?????????????? | | ??????????????????" "" ig############### | | ??????????????????""""" " %%gmm % | | ??????????????????? [g% | | ???????????????????"""" b* ggg%b | | ???????????????????"""" % % We/ g ############### | | ?????????????? " """"""$ % %#?????????????? | | ?????????????? " ""%@ #?????????????? | | ?????????????? " " !% "#?????????????? | | ???????????????""""""""%% " """"#?????????????? | | ???????????????" """""""#?????????????? | | ?????????????# """ """"""#?????????????? | | ?????????????# " " " " #?????????????? | | ?????????????# " " " " #?????????????? | | ?????????????" " " " """ " #?????????????? | | ?????????????" """ " " "" " #?????????????? | | ?????????????? " " " " ???????????????? | | ?????????????? """"?""""" ?? ???????????????? | | ?????????????? "???? ?" """""??"??????????????? | | ?????????????????????"???? " ????????????????????? | | ??????????????????????????#?#????????????????????? | | ?????????????????????????????????????????????????? | | ?????????????????????????????????????????????????? | | ?????????????????????????????????????????????????? | | ?????????????????????????????????????????????????? | | ?????????????????????????????????????????????????? | | ?????????????????????????????????????????????????? | | ?????????????????????????????????????????????????? | | ?????????????????????????????????????????????????? | | ?????????????????????????????????????????????????? | | ?????????????????????????????????????????????????? | | ?????????????????????????????????????????????????? | +----------------------------------------------------+ Best States ------------- Heat Dissipation 152 Energy Generation 91 Energy Capacity 930 Matter Stores 800 Matter Capacity 800 Sight Range 22 Robot Scan Range 20 Terrain Scan Range 16 Terrain Scan Density 10 ECM Strength 1 Jamming Range 16 Power Amplification 30 Corruption Containment 8 Corruption Block 15 Armor Coverage 600 Resistance: KI 25 Resistance: EX 25 Resistance: EM 75 Core Shielding 30 Utility Shielding 90 Point Defense Rating 160 Weapon Cycling 15 Melee Speed Boost 50 Phase Shifting 15 Evasion (%) 70 Targeting Accuracy 8 Melee Accuracy 32 Recoil Reduction 3 Force Boost 40 Offensive Hacking 68 Defensive Hacking 45 Authchip Count 2 Trap Extractor Capacity 8 Item Schematics ----------------- Cargo Storage Unit | -10/Materials | Hacked Lgt. Cannon | -9/Materials | Extracted Imp. VTOL Module | -8/Materials | Scanalyzed Mak. Spear | -8/Materials | Scanalyzed Mak. Hacking Suite | -8/Materials | Scanalyzed Cmb. Gravmag System | -8/Materials | Scanalyzed Adv. Hacking Suite | -8/Materials | Scanalyzed Adv. Shield Generator | -8/Materials | Scanalyzed Imp. Medium Armor Plating | -8/Storage | Hacked Cld. VTOL Module | -7/Factory | Scanalyzed Imp. Propulsion Shielding | -7/Factory | Hacked Adv. Melee Analysis Suite | -7/Factory | Hacked Exp. Core Analyzer | -7/Factory | Scanalyzed Adv. Cooling System | -7/Factory | Hacked Beamcaster | -7/Zion | Free Riot Gun | -7/Zion | Free Battle Rifle | -7/Zion | Free Barrage Gun | -7/Zion | Free Hvy. Battle Rifle | -7/Zion | Free Battle Cannon | -7/Zion | Free Slug Cannon | -7/Zion | Free Lgt. Angular Momentum Engine | -7/Zion | Archive Enh. Gauss Cannon | -7/Zion | Archive 0b10 Decoder Chip [Skirmisher] | -7/Zion | Archive Med. Treads | -7/Zion | Archive Arm. Leg | -7/Zion | Archive Imp. Shield Generator | -7/Zion | Archive Flexi-carbon Leg | -7/Zion | Archive Arm. Huge Wheel | -7/Zion | Archive Nuclear Pulse Thruster | -7/Zion | Archive Gravmag System | -7/Zion | Archive Ripper | -7/Zion | Archive Weapon Mount | -6/Factory | Scanalyzed Lgt. Fission Core | -6/Factory | Hacked Power Sword | -6/Factory | Hacked Imp. Cloaking Device | -6/Factory | Hacked Graphene Brace | -6/Factory | Hacked Lrn. Tractor Beam | -6/Factory | Scanalyzed Prc. Energy Filter | -6/Data Miner | Free Cld. Nuclear Pulse Thruster | -6/Data Miner | Free Lgt. Antimatter Reactor | -6/Data Miner | Free Adv. Datajack | -6/Data Miner | Free Adv. Focal Shield | -6/Data Miner | Free Imp. Gyrokinetic Inverter | -6/Data Miner | Free Tesla Bomb Launcher | -6/Data Miner | Free Lgt. Regenerative Plating | -6/Data Miner | Free Combat Drone Bay | -6/Data Miner | Free Lgt. Neutrino Core | -5/Factory | Hacked Exp. Melee Analysis Suite | -5/Factory | Hacked Exp. Signal Interpreter | -5/Factory | Hacked Cmb. Antigrav System | -5/Factory | Hacked Mic. Antimatter Reactor | -5/Factory | Scanalyzed Plasma Sword | -5/Factory | Scanalyzed Adv. Component Analysis Suite | -5/Extension | Hacked Imp. Linear Gravjet | -5/Extension | Hacked Com. HERF Cannon | -5/Extension | Hacked Adv. Power Amplifier | -5/Hub_04(d) | Hacked Lgt. Particle Reactor | -5/Hub_04(d) | Hacked Exp. Weapon Shielding | -5/Hub_04(d) | Hacked Neutron Missile Launcher | -4/Factory | Scanalyzed Nanosword | -4/Factory | Hacked Exp. Sensor Array | -4/Factory | Hacked Adv. Force Booster | -4/Factory | Hacked Exp. EM Disruption Field | -4/Factory | Scanalyzed Exp. Terrain Scan Processor | -4/Factory | Hacked Cld. Antigrav System | -4/Factory | Scanalyzed Biometal Heavy Treads | -3/Research | Hacked Femtoactuators | -2/Research | Hacked Exp. Actuator Array | -2/Testing | Hacked Exp. Reaction Control System | -2/Section 7 | Hacked Exp. Utility Shielding | -1/Access | Hacked Robot Schematics ------------------ G-73 Enforcer | -7/Zion | Archive P-60 Hacker | -7/Zion | Archive S-27 Virus | -7/Zion | Archive K-01 Serf | -7/Zion | Archive Y-54 Guardian | -6/Data Miner | Free B-48 Gladiator | -6/Data Miner | Free O-32 Director | -6/Data Miner | Free Fabricated ------------ Cld. VTOL Module | x1 | -7/Factory | Authchip O-24 Administrator | x1 | -7/Factory | Preloaded Cld. VTOL Module | x1 | -7/Factory Cld. VTOL Module | x1 | -7/Factory Cld. VTOL Module | x1 | -7/Factory Adv. Hacking Suite | x1 | -6/Factory | Authchip Adv. Hacking Suite | x1 | -6/Factory | Authchip Cld. Nuclear Pulse Thruster | x1 | -5/Factory Enh. Force Lance | x1 | -5/Factory | Preloaded Exp. Signal Interpreter | x1 | -5/Factory Cld. Nuclear Pulse Thruster | x1 | -5/Factory Adv. Cloaking Device | x1 | -4/Factory | Preloaded Exp. Sensor Array | x1 | -4/Factory Cmb. Antigrav System | x2 | -3/Research Exp. Sensor Array | x1 | -3/Research Femtoactuators | x1 | -1/Access Adv. Force Booster | x2 | -1/Access Exp. Actuator Array | x1 | -1/Access Exp. Utility Shielding | x1 | -1/Access Alien Tech Used ----------------- Core Expander Transdimensional Reconstructor Sigix Broadsword High-powered Transdimensional Reconstructor Terrabomb Integrated Thermoelectric Network Integrated Reactor LRC Matter Compressor LRC Boosters LRC Armor Integrity Redistributor Subatomic Replicator Achievements -------------- Assassin Challenges ------------ None Game ------ Seed GuidanceStormInterrupter Manual? 0 Play Time 15:49:32 Cumulative 367.7 hours Start 2023.09.11 @ 11:13:15 End 2023.09.13 @ 22:38:20 Sessions 19 Manual Loads 0 Difficulty Rogue Special Mode None Game No. 166 Rogue 166 Adventurer 0 Explorer 0 Win Type 7 Total 17 Types 8/0/3/3/0/0/2/1/0 Lore% 88 Gallery% 91 Achievement% 80 Wizard Run 0 Options --------- ASCII 0 Keyboard 1 Movement Arrows Keybinds 0 Fullscreen 2 Font 18/X11 Map View 76x50 Tactical HUD 1 Map Filters NONE Filters NONE Steam 1 RUN: 97014201-3534-4780-8d3c-05a9d4367a91